Cogmind - Beta 15 @@@ ROGUE MODE // 2025.07.19 @ 15:14:16 Player: cptwinky Result: Defending 0bPrime! Performance ------------- Evolutions (8) 4000 Regions Visited (32) 6400 Robots Destroyed (509) 2545 Value Destroyed (27195) 27195 Prototype IDs (167) 3340 Alien Tech Used (11) 2200 Bonus (52321) 52321 TOTAL SCORE: 98001 Bonus ------- Triggered High Security 500 High Alert Combat Kills 12217 Follower Combat Kills 3488 Network Hubs Disabled 200 Registered with UFD 300 Met Optimus in HQ 500 Met Zhirov 300 Met R17 at Cetus 500 Found Hidden Lab 3000 Hacked Protovariant 1000 Destroyed Superfortress 15000 Met Optimus at Protoforge 1000 Completed Drillbomb Mission10000 Optimus Survived to 0b1 3000 Win 3000 Friendly Fire -1684 Cogmind --------- Core Integrity 317/1450 Matter 1042/1050 Energy 1520/1520 System Corruption 13% Temperature Cool (0) Movement Flying (22) Location 0bPrime Parts ------- > --- POWER (2) -------- Hybrid Graviton Reactor Concept Zero-point Core > --- PROPULSION (8) --- Impulse Thruster Array Impulse Thruster Array Experimental Biomechanical Wings Experimental Biomechanical Wings Experimental Biomechanical Wings Concept Fieldthrust Drive > --- UTILITY (10) ----- Medium Storage Unit Concept NT7 Matterbank Spectral Analyzer Experimental Signal Interpreter Concept Networked Targeting System Experimental Target Analyzer Experimental Core Analyzer Concept RG22 Armor Graphene Brace Concept Matter Streamer > --- WEAPON (4) ------- (None) > --- INVENTORY (10) --- Concept Smart ZDS Peak State ------------ > --- POWER ------------ Concept Zero-point Core Concept Zero-point Core > --- PROPULSION ------- Impulse Thruster Array Experimental Biomechanical Wings Experimental Biomechanical Wings Experimental Biomechanical Wings Experimental Surge Thruster Concept Fieldthrust Drive Concept Fieldthrust Drive > --- UTILITY ---------- Medium Storage Unit Spectral Analyzer Experimental Signal Interpreter Experimental Target Analyzer Experimental Core Analyzer Concept Reaction Jets Concept Cloak Mesh Concept RG22 Armor Graphene Brace > --- WEAPON ----------- Concept Disintegration Ray Concept Plasma Driver Concept XC Strikerail Concept XC Strikerail > --- INVENTORY -------- Concept Chromion Battery Concept NT7 Matterbank Experimental Sensor Array Concept Networked Targeting System AEGIS Remote Shield Concept Matter Streamer Crosscalibrator Warp Cannon Concept Tiamat Rocket Array Concept Smart ZDS [Rating: 253] Favorites ----------- Power Cooled Ion Engine Engine Cooled Ion Engine Power Core Concept Zero-point Core Reactor Fusion Reactor Propulsion Armored Treads Treads Armored Treads Leg Myomer Leg Wheel Wheel Hover Unit Combat Airjet Flight Unit Experimental Biomechanical Wings Utility Large Storage Unit Device Experimental Sensor Array Storage Large Storage Unit Processor Experimental Signal Interpreter Hackware Advanced Hacking Suite Protection Improved Light Armor Plating Weapon Katana Energy Gun Beam Rifle Energy Cannon Enhanced Nova Cannon Ballistic Gun Concept XC Strikerail Ballistic Cannon Bore Cannon Launcher Mini Grenade Launcher Special Weapon Mining Laser Impact Weapon Shock Maul Slashing Weapon Katana Piercing Weapon Lance Special Melee Weapon Advanced Datajack Build | -11 -10 -10 -9 -9 -9 -8 -8 -8 -8 -8 -6 -6 -6 -6 -6 -5 -5 -5 -5 -5 -5 -4 -4 -4 -4 -4 -4 -3 -3 -2 -2 -2 ------- Run | Yrd Mat Min Mat Min Exi Min Mat Sto Rec Scr Fac Ext Cet Arc Hub Fac Was Fac Upp Upp Zhi Pro Fac Was Fac Arm Lab Res Tes Res Qua Frg Slots Evolved 16 | . . . 2 . . . 2 . . . 4 . . . . 2 . . . . . . 2 . . . . 2 . 2 . . Power 1 | . . . . . . . . . . . 1 . . . . . . . . . . . . . . . . . . . . . Propulsion 6 | . . . 1 . . . . . . . 2 . . . . 1 . . . . . . . . . . . 1 . 1 . . Utility 8 | . . . 1 . . . 1 . . . 1 . . . . 1 . . . . . . 2 . . . . 1 . 1 . . Weapon 1 | . . . . . . . 1 . . . . . . . . . . . . . . . . . . . . . . . . . Parts Attached 362 | 7 . 5 28 2 1 . 22 11 2 13 26 24 7 3 10 11 1 30 6 1 5 3 30 1 3 1 5 7 11 1 4 81 Power 49 | 1 . 1 3 . . . 1 2 . 1 6 4 1 . 3 2 . 7 1 . 2 . 4 . . . . 1 . . 2 7 Engine 19 | 1 . 1 3 . . . 1 2 . . 3 2 . . 2 . . 3 1 . . . . . . . . . . . . . Core 18 | . . . . . . . . . . 1 2 2 . . 1 2 . 4 . . 1 . . . . . . . . . 1 4 Reactor 12 | . . . . . . . . . . . 1 . 1 . . . . . . . 1 . 4 . . . . 1 . . 1 3 Propulsion 103 | 2 . 2 7 . . . 1 5 . 1 11 9 1 1 6 3 . 8 1 . 1 2 13 . . . . 2 2 . . 25 Treads 16 | 2 . . 4 . . . 1 5 . . . 1 1 . . . . 1 . . . . . . . . . . . . . 1 Leg 31 | . . 2 3 . . . . . . . 1 8 . 1 1 . . . . . . . 12 . . . . . . . . 3 Wheel 1 | . . . . . . . . . . 1 . . . . . . . . . . . . . . . . . . . . . . Hover 31 | . . . . . . . . . . . 10 . . . 5 3 . 7 1 . 1 2 . . . . . . . . . 2 Flight 24 | . . . . . . . . . . . . . . . . . . . . . . . 1 . . . . 2 2 . . 19 Utility 113 | 1 . . 7 1 1 . 9 1 1 6 7 7 2 1 1 3 1 9 2 1 2 1 10 1 1 . 2 1 6 1 1 26 Device 50 | . . . 2 . . . 3 . . 1 2 1 . 1 1 2 1 7 1 1 1 . 5 1 1 . 1 1 1 . 1 15 Storage 12 | 1 . . 1 . 1 . . . . 2 . 1 . . . . . 1 . . . . . . . . . . 1 . . 4 Processor 12 | . . . 1 . . . 2 . . 1 2 . . . . . . . . . . . 1 . . . . . 2 . . 3 Hackware 9 | . . . . . . . 2 . 1 . . . . . . 1 . 1 . . . . 1 . . . 1 . 1 1 . . Protection 30 | . . . 3 1 . . 2 1 . 2 3 5 2 . . . . . 1 . 1 1 3 . . . . . 1 . . 4 Artifact . | . . . . . . . . . . . . . . . . . . . . . . . . . . . . . . . . . Weapon 97 | 3 . 2 11 1 . . 11 3 1 5 2 4 3 1 . 3 . 6 2 . . . 3 . 2 1 3 3 3 . 1 23 Energy Gun 20 | 3 . . 4 . . . 4 . . . . . 1 . . . . . . . . . . . 2 . 1 . 1 . . 4 Energy Cannon 8 | . . . . . . . . . . . . . . . . 1 . . . . . . . . . 1 1 1 1 . . 3 Ballistic Gun 18 | . . 2 2 1 . . 3 . . . . . 2 . . 1 . . . . . . . . . . . . . . . 7 Ballistic Cannon 4 | . . . . . . . . . . . . 2 . . . . . . . . . . . . . . . . . . . 2 Launcher 9 | . . . 1 . . . 1 . 1 1 . . . . . . . 1 1 . . . . . . . . . . . . 3 Special Weapon 5 | . . . 1 . . . . 1 . . . . . . . . . . . . . . . . . . 1 1 . . . 1 Impact Weapon 7 | . . . 1 . . . 1 2 . 1 . . . . . . . . . . . . 1 . . . . . . . . 1 Slashing Weapon 17 | . . . 1 . . . 2 . . 3 . 2 . . . . . 3 . . . . 2 . . . . 1 1 . 1 1 Piercing Weapon 6 | . . . . . . . . . . . 1 . . . . 1 . 2 1 . . . . . . . . . . . . 1 Special Melee Weapon 3 | . . . 1 . . . . . . . 1 . . 1 . . . . . . . . . . . . . . . . . . Unidentified Prototypes 45 | . . . 2 . . . 3 1 . 1 1 . 4 . . . . . 1 . 4 . 1 1 . 2 6 . 4 . 3 11 Corrupted Parts 1 | . . . . . . . . . 1 . . . . . . . . . . . . . . . . . . . . . . . System Corruption 3 | . . . . . . . . . 3 . . . . . . . . . . . . . . . . . . . . . . . Parts Lost 91 | . 1 1 2 . . . 3 5 . . 14 10 . . . 1 . 10 2 . . . 21 . 1 . . 2 . . . 18 Power 15 | . . . 1 . . . . 1 . . 5 2 . . . . . 3 . . . . 2 . . . . 1 . . . . Propulsion 35 | . . 1 . . . . . 2 . . 4 4 . . . . . 6 2 . . . 6 . 1 . . 1 . . . 8 Utility 24 | . . . 1 . . . 2 1 . . 3 2 . . . . . 1 . . . . 9 . . . . . . . . 5 Weapon 17 | . 1 . . . . . 1 1 . . 2 2 . . . 1 . . . . . . 4 . . . . . . . . 5 Highest Loss Streak 12 | . 1 1 1 . . . 2 3 . . 3 4 . . . 1 . 3 2 . . . 12 . 1 . . 1 . . . 3 To Critical Strikes . | . . . . . . . . . . . . . . . . . . . . . . . . . . . . . . . . . Average Backups 11 | 4 6 7 13 14 15 15 14 14 15 14 11 6 8 9 8 8 9 11 13 14 14 14 13 5 4 4 4 4 4 7 7 8 Power . | . 1 1 . 1 1 1 1 . . . . . 1 1 . . . . 1 1 . . . . . . . . . . . . Propulsion 1 | 1 2 1 . . 3 3 3 4 6 6 . . . . . . 1 . . . 1 3 . . . . . . . . . . Utility 4 | . 1 2 3 3 4 4 4 3 3 3 6 3 3 2 2 3 4 5 6 7 8 8 6 2 1 1 1 1 1 3 1 4 Weapon 3 | 1 1 2 6 8 6 6 4 4 4 3 3 1 2 5 4 3 3 4 5 4 3 1 2 1 1 1 2 2 2 3 3 3 Tool/Special . | . . . . . . . . . . . . . . . . . . . . . . . . . . . . . . . . . Unused Backups 44 | . . 1 6 4 . . . 2 . . 1 6 1 . 2 4 . 1 1 . . . 3 . . 1 . . . . 5 6 Power 6 | . . . 3 . . . . 1 . . . . 1 . 1 . . . . . . . . . . . . . . . . . Propulsion 3 | . . 1 1 . . . . 1 . . . . . . . . . . . . . . . . . . . . . . . . Utility 22 | . . . 1 1 . . . . . . 1 6 . . . 2 . 1 1 . . . 1 . . . . . . . 4 4 Weapon 11 | . . . 1 3 . . . . . . . . . . 1 2 . . . . . . 2 . . . . . . . . 2 Tool/Special 2 | . . . . . . . . . . . . . . . . . . . . . . . . . . 1 . . . . 1 . Average Slot Usage (%) 92 | . 84 85 96 100 100 100 99 98 99 100 95 87 93 93 93 99 100 96 93 94 93 100 87 35 57 69 60 64 77 76 79 81 Engine 6 | . 14 14 10 11 11 11 9 9 9 8 2 3 6 6 6 4 5 3 10 11 6 . . . 2 10 10 4 . . . . Core 2 | . . . . . . . . . . . 6 5 1 . . 5 5 6 . . 2 5 . . . . . 1 4 4 3 6 Reactor 1 | . . . . . . . . . . . 1 1 4 6 4 . . . . . 2 5 7 . . . . 1 4 4 4 1 Treads 13 | . 28 15 28 33 33 33 26 26 27 26 . 3 6 6 5 . . . . . . . . . . . . . . . . . Leg 3 | . . 12 4 . . . . . . . . 16 24 20 17 . . . . . . . 25 . . . . . . . . . Hover 7 | . . . . . . . . . . . 32 9 . . 4 35 35 32 28 29 30 35 2 . 2 5 5 4 . . . . Flight 3 | . . . . . . . . . . . . . . . . . . . . . . . . 5 5 5 5 10 15 16 16 25 Device 5 | . . . 1 . . . 5 . . . 4 4 . . 3 9 9 10 11 11 11 11 10 9 18 19 15 14 13 12 14 13 Storage 7 | . 14 14 11 11 11 11 9 9 9 9 6 2 6 6 6 5 5 5 5 5 5 5 4 . . . . . . 4 4 4 Processor 12 | . . . 10 11 11 11 9 18 18 18 14 13 13 13 13 11 11 11 11 11 11 11 13 15 15 15 12 9 10 8 8 14 Hackware 1 | . . . . . . . 3 . . . . . . . . . . . . . . . . 5 5 5 7 9 12 13 13 2 Protection 6 | . . . 7 11 11 11 7 9 9 8 6 10 8 12 8 6 6 4 5 4 3 5 5 . . . . . . . . 3 Energy Gun 4 | . 27 8 10 10 11 11 14 6 . . . . . . . . . . . . . . . . 8 4 . . . . 3 . Ballistic Gun 3 | . . 19 10 11 5 11 5 . . . . . 6 13 13 3 . . . . . . . . . . . . . . . 4 Impact Weapon 1 | . . . . . . . . 4 9 2 . 4 6 2 6 5 5 2 . . . . . . . . . . . . . . Slashing Weapon 6 | . . . . . . . 4 14 16 23 18 1 4 . . 4 5 7 12 7 . 4 5 . . . . . 4 4 4 . Piercing Weapon 1 | . . . . . . . . . . . 1 1 . . . . 5 5 3 7 11 11 5 . . . . . . . . . Peak Build Rating 253 | 6 6 7 25 27 27 27 44 40 39 46 78 80 110 111 111 106 103 108 96 91 101 103 138 61 100 102 98 139 163 159 178 253 Average Rating 76 | 5 5 6 20 24 26 27 36 36 37 42 66 66 91 110 105 101 101 96 87 87 93 98 114 60 85 93 86 115 146 156 170 209 On Entrance 72 | . 6 6 7 23 27 27 27 38 38 38 44 69 77 110 111 88 103 103 94 85 91 98 103 51 61 94 75 88 136 154 159 171 Naked Turns . | . . . . . . . . . . . . . . . . . . . . . . . . . . . . . . . . . Heaviest Build 80 | 12 12 13 39 37 37 37 48 43 38 45 53 70 76 69 69 58 50 56 62 62 59 59 75 2 15 19 19 34 39 39 39 80 Greatest Support 170 | 40 40 40 60 60 60 60 60 60 60 60 54 90 90 70 70 74 74 74 74 65 76 76 170 15 15 15 15 36 43 43 43 100 Greatest Overweight (x) 4 | . . . . . . . . 1 . 4 . 2 . . 2 . . 1 1 . . . 2 . . 1 2 . . . . 1 Average Overweight (x) . | . . . . . . . . . . . . . . . . . . . . . . . . . . . 1 . . . . . Largest Inventory Capacity 25 | 8 8 8 15 15 15 15 15 15 15 15 15 15 10 10 10 10 10 15 15 15 15 15 15 5 5 5 5 5 8 8 8 25 Average Capacity 12 | 7 8 8 13 15 15 15 15 15 15 15 15 8 10 10 10 10 10 13 15 15 15 15 14 5 5 5 5 5 5 8 8 9 Most Carried 15 | 6 8 8 15 15 15 15 15 15 15 15 15 15 10 10 10 10 10 15 15 15 15 15 15 5 5 5 5 5 5 8 8 10 Average Carried 11 | 4 6 7 13 14 15 15 14 14 15 14 13 7 9 10 9 9 9 12 14 15 14 14 13 5 4 4 4 4 4 7 7 8 Final Capacity 15 | 8 8 8 15 15 15 15 15 15 15 15 15 10 10 10 10 10 10 15 15 15 15 15 5 5 5 5 5 5 8 8 8 10 Final Carried 15 | 6 8 8 15 15 15 15 15 15 15 15 15 7 10 10 10 10 9 15 15 15 15 15 5 5 5 5 5 5 5 8 8 1 Class Distribution -------------------- 24% | Mutant 17% | Commander-Gladiator 17% | Gladiator 7% | Scavenger-Gladiator 6% | Scavenger-Mutant 5% | Gunner 4% | Hacker-Ninja 4% | Scavenger-Sprinter 3% | Scavenger-Scout 3% | Commander-Mutant Dominant Class ---------------- Mutant | -10/Materials Mutant | -10/Mines Mutant | -9/Materials Mutant | -9/Mines Mutant | -9/Exiles Mutant | -8/Mines Gunner | -8/Materials Gladiator | -8/Storage Commander-Gladiator | -8/Recycling Commander-Gladiator | -8/Scraptown Commander-Gladiator | -6/Factory Commander-Mutant | -6/Extension Commander-Gladiator | -6/Cetus Scavenger-Mutant | -6/Archives Scavenger-Mutant | -6/Hub_04(d) Scavenger-Gladiator | -5/Factory Scavenger-Gladiator | -5/Waste Gladiator | -5/Factory Gladiator | -5/Upper Caves Gladiator | -5/Upper Caves Gladiator | -5/Zhirov Gladiator | -4/Proximity Caves Gladiator | -4/Factory Mutant | -4/Waste Infiltrator-Mutant | -4/Factory Infiltrator-Mutant | -4/Armory Hacker-Mutant | -4/Lab Hacker-Mutant | -3/Research Hacker-Ninja | -3/Testing Hacker-Ninja | -2/Research Hacker-Ninja | -2/Quarantine Scavenger-Sprinter | -2/Protoforge Resources | -11 -10 -10 -9 -9 -9 -8 -8 -8 -8 -8 -6 -6 -6 -6 -6 -5 -5 -5 -5 -5 -5 -4 -4 -4 -4 -4 -4 -3 -3 -2 -2 -2 ----------- Run | Yrd Mat Min Mat Min Exi Min Mat Sto Rec Scr Fac Ext Cet Arc Hub Fac Was Fac Upp Upp Zhi Pro Fac Was Fac Arm Lab Res Tes Res Qua Frg Matter Collected 27120 | 266 45 218 648 201 . . 752 263 89 220 397 717 208 204 162 249 84 777 184 191 68 250 555 . . . . 298 191 21 70 19792 Remotely 5271 | . . . . . . . . . . . . . . . . . . 69 . . . . . . . . . . . . . 5202 Salvage Created 19272 | 69 316 218 1739 158 . . 1638 1643 58 . 724 1194 193 142 137 545 . 1867 90 399 100 370 2118 . . . . 359 226 161 315 4493 Parts 879 | 8 20 11 105 7 . . 74 72 5 . 48 55 8 2 6 33 . 71 . 4 5 20 89 . . . . 21 13 7 10 185 Haulers Intercepted 20 | . 2 . 6 . . . 5 4 . . . . . . . 1 . 1 . . . . 1 . . . . . . . . . Recyclers Shooed 5 | . . . . . . . 1 . 1 . 1 . . . . . . 2 . . . . . . . . . . . . . . Parts Field Recycled . | . . . . . . . . . . . . . . . . . . . . . . . . . . . . . . . . . Retrieved Matter . | . . . . . . . . . . . . . . . . . . . . . . . . . . . . . . . . . Parts Self-Destructed 19 | . . . . . . . . . . . . . . . . . . . . 2 4 13 . . . . . . . . . . Prevented . | . . . . . . . . . . . . . . . . . . . . . . . . . . . . . . . . . Kills | -11 -10 -10 -9 -9 -9 -8 -8 -8 -8 -8 -6 -6 -6 -6 -6 -5 -5 -5 -5 -5 -5 -4 -4 -4 -4 -4 -4 -3 -3 -2 -2 -2 ------- Run | Yrd Mat Min Mat Min Exi Min Mat Sto Rec Scr Fac Ext Cet Arc Hub Fac Was Fac Upp Upp Zhi Pro Fac Was Fac Arm Lab Res Tes Res Qua Frg Combat Hostiles Destroyed 394 | . 10 6 30 9 . . 33 26 1 . 11 17 2 1 4 10 . 36 1 3 . 6 26 . . . . 4 . . . 158 Melee 85 | . . . 1 . . . . 15 1 . 11 11 . . 2 7 . 12 1 . . . 24 . . . . . . . . . Guns 111 | . 10 6 28 8 . . 21 2 . . . . 2 1 1 . . . . . . . . . . . . . . . . 32 Cannons 18 | . . . . . . . . . . . . 5 . . . . . . . . . . . . . . . 3 . . . 10 AOE 159 | . . . 1 1 . . 12 5 . . . . . . . 2 . 23 . 3 . 6 2 . . . . . . . . 104 Classes Destroyed 31 | 1 3 . 9 1 . . . 1 . . 2 . . . . . . 1 1 . . 2 . . . . . . 1 . . 9 Worker 12 | . . . 1 . . . 2 1 . . 6 . . . . . . 2 . . . . . . . . . . . . . . Builder 7 | . . . 2 . . . 1 . . . 1 2 . . . . . . . . . . 1 . . . . . . . . . Tunneler 5 | 4 . . . . . . . . . . . . . . . . . . . . . . . . . . . 1 . . . . Hauler 20 | . 2 . 6 . . . 5 4 . . . . . . . 1 . 1 . . . . 1 . . . . . . . . . Recycler 17 | . . . 2 . . . . 3 . . 1 2 . . . . . 4 . . . . 3 . . . . . 1 . 1 . Carrier 4 | . . . . . . . . . . . . . . . . . . . . . . . . . . . . . . . . 4 Minesweeper 3 | . . . . . . . . . . . . . . . . . . . 1 1 . 1 . . . . . . . . . . Mechanic 11 | . . . 2 . . . . 1 . . . . . . . . . 1 . . . . . . . . . . . . . 7 Operator 15 | . . . 1 . . . 3 1 . . . 1 . 2 . 2 . 2 . . . . 1 . . . . . 1 1 . . Drone 10 | . . . . . . . . . . . . . . . . . . . . . . 2 . . . . . . . . . 8 Watcher 18 | . . . 1 . . . 2 1 . . 2 . 2 . . 1 . . . . . . 2 . . . . 1 . 3 3 . Swarmer 57 | . 6 2 3 . . . . 3 . . 4 4 . . 2 3 . 10 . . . 4 3 . . . . . . . . 13 Saboteur 5 | . . . . . . . . . . . . . . . . . . 3 . . . . . . . . . . . . . 2 Grunt 117 | . 4 4 14 2 . . 22 13 . . 1 2 . . . 4 . 14 1 3 . . 8 . . . . . . . . 25 Brawler 10 | . . . 2 . . . 3 . . . . . . . . . . . . . . . . . . . . . . . . 5 Duelist 10 | . . . 1 . . . 2 . . . . . . . . . . . . . . . 1 . . . . . . . . 6 Protector 4 | . . . . . . . . . . . . . . . . . . . . . . . . . . . . . . . . 4 Researcher 3 | . . . . . . . . . . . . . . . . . . . . . . . . . . . . . 1 . . 2 Sentry 51 | . . . 10 . . . 6 9 1 . . 9 . 1 . . . 1 . . . . 3 . . . . . . . . 11 Specialist 2 | . . . . . . . . . . . 1 . . . . . . 1 . . . . . . . . . . . . . . Hunter 26 | . . . . . . . . 1 . . . 2 . . 1 . . . . . . . 6 . . . . 2 . . . 14 Programmer 37 | . . . . . . . . . . . 5 . . . 1 3 . 7 . . . . 5 . . . . 2 . . . 14 Behemoth 1 | . . . . . . . . . . . . . . . . . . . . . . . . . . . . . . . . 1 Cetus Guard 2 | . . . . . . . . . . . . . 2 . . . . . . . . . . . . . . . . . . . Decapitator 6 | . . . . . . . . . . . . . . . . . . . . . . . . . . . . . . . . 6 Immortal 3 | . . . . . . . . . . . . . . . . . . . . . . . . . . . . . . . . 3 Striker 13 | . . . . . . . . . . . . . . . . . . . . . . . . . . . . . . . . 13 Executioner 23 | . . . . . . . . . . . . . . . . . . . . . . . . . . . . . . . . 23 Alpha 7 2 | . . . . . . . . . . . . . . . . . . . . . . . . . . . . . . . . 2 V-Series 8 | . . . . . . . . . . . . . . . . . . . . . . . . . . . . . . . . 8 Ranger 4 | . . . . . . . . . . . . . . . . . . . . . . 4 . . . . . . . . . . Scrapoid 2 | . . . . . . . . . . . . . . . . . . . . . . . . . . . . . . . . 2 Packrat 4 | . . . . . . . . . . . . . . . . . . . . 4 . . . . . . . . . . . . Assembled 7 | . . . . 7 . . . . . . . . . . . . . . . . . . . . . . . . . . . . Butcher 1 | . . . . . . . . . . . . 1 . . . . . . . . . . . . . . . . . . . . Best Kill Streak 23 | 1 4 2 4 3 . . 9 5 1 . 5 5 3 1 2 4 . 7 1 3 . 4 5 . . . . 2 1 2 2 23 Combat Bots Only 21 | . 4 2 3 3 . . 6 4 1 . 3 4 2 1 2 4 . 7 1 3 . 4 3 . . . . 2 . . . 21 Max Kills in Single Turn 7 | 1 1 1 1 2 . . 3 2 1 . 1 2 1 1 1 2 . 5 1 2 . 3 2 . . . . 1 1 1 1 7 Gunslinging 1 | . . . . 1 . . . . . . . . . . . . . . . . . . . . . . . . . . . 1 Exploded 7 | . . . 1 1 . . 2 2 . . . . . . . 2 . 5 . 2 . 3 2 . . . . . . . . 7 Melee 1 | . . . 1 . . . . 1 1 . 1 1 . . 1 1 . 1 1 . . . 1 . . . . . . . . . Uniques/NPCs Destroyed . | . . . . . . . . . . . . . . . . . . . . . . . . . . . . . . . . . Combat | -11 -10 -10 -9 -9 -9 -8 -8 -8 -8 -8 -6 -6 -6 -6 -6 -5 -5 -5 -5 -5 -5 -4 -4 -4 -4 -4 -4 -3 -3 -2 -2 -2 -------- Run | Yrd Mat Min Mat Min Exi Min Mat Sto Rec Scr Fac Ext Cet Arc Hub Fac Was Fac Upp Upp Zhi Pro Fac Was Fac Arm Lab Res Tes Res Qua Frg Hostile Shots Fired 2279 | . 61 23 107 26 . . 140 131 5 . 246 343 27 10 39 62 . 215 10 7 . 1 423 . 8 . . 26 . 6 2 361 Missed 852 | . 13 8 33 7 . . 40 37 . . 106 146 8 2 10 26 . 80 1 6 . 1 143 . 3 . . 16 . 5 1 160 Hits 1427 | . 48 15 74 19 . . 100 94 5 . 140 197 19 8 29 36 . 135 9 1 . . 280 . 5 . . 10 . 1 1 201 Melee 29 | . . . 8 . . . 6 . . . . . . . . 2 . 1 . . . . 7 . . . . . . . . 5 Projectile 1398 | . 48 15 66 19 . . 94 94 5 . 140 197 19 8 29 34 . 134 9 1 . . 273 . 5 . . 10 . 1 1 196 AOE 15 | . . . . . . . . . . . 1 . . . . 6 . . . . . . 2 . . . . . . . . 6 Critical Strikes 69 | . . . 1 . . . 12 4 . . 2 1 5 2 2 2 . 11 . . . 1 13 . . . . . . . . 13 Actively Blocked 23 | . . . . . . . . . . . . . . . . . . . . . . . 10 . . . . . . . . 13 Part Disruptions 6 | . . . . . . . . . . . 1 . . . . . . . . . . . 1 . . . . 1 . . . 3 Damage Taken 27007 | . 474 169 967 242 . . 1675 1462 56 . 2204 1893 421 168 681 1064 . 3180 173 18 . 70 5259 . 136 . . 223 . 27 . 6445 Core 3757 | . 107 12 110 40 . . 62 176 11 . 380 264 42 19 38 253 . 224 37 . . 14 1028 . 23 . . 15 . . . 902 Absorbed by Shields 715 | . . . 118 . . . . . 15 . 44 262 132 51 7 . . . . . . . . . . . . . . . . 86 Redirected to Shielding 391 | . . . 4 . . . . . . . . . . . . . . . . . . . . . . . . . . . . 387 Ignored by Resistances 799 | . . . . . . . 66 . . . . . . . . . . . . . . . . . . . . . . . . 733 Regen/Repaired (Parts) 3676 | . . . 279 . . . 382 141 . 115 65 . . . . 24 100 1132 . . . . 88 . . . . . 149 . . 1201 Core Remaining (%) 50 | 100 . 52 . . . 62 . . . 54 . . . . 12 . . . . . . 47 . . . . 8 . 98 . . 21 Volleys Fired 816 | 7 31 17 120 25 . . 89 13 . . . 43 22 21 4 13 . 16 . 4 . 4 5 . 2 4 8 27 17 . 1 323 Largest 3 | 2 2 2 2 2 . . 3 2 . . . 1 1 2 2 1 . 1 . 1 . 1 1 . 2 1 1 1 1 . 1 3 Hottest 300 | 100 100 90 131 79 . . 185 160 . . . 48 48 70 70 240 . 75 . 43 . 80 80 . 115 105 105 120 120 . 120 300 Shots Fired 1249 | 14 62 36 229 49 . . 207 18 . . . 46 21 41 8 14 . 16 . 4 . 4 5 . 4 4 8 27 17 . 1 414 Gun 868 | 14 62 36 218 48 . . 185 14 . . . . 11 41 8 11 . . . . . . . . 4 . . . . . . 216 Cannon 226 | . . . . . . . . . . . . 46 10 . . 3 . 3 . . . . . . . 4 8 27 17 . 1 107 Launcher 143 | . . . 3 1 . . 22 4 . . . . . . . . . 13 . 4 . 4 5 . . . . . . . . 87 Special 12 | . . . 8 . . . . . . . . . . . . . . . . . . . . . . . . . . . . 4 Kinetic 526 | . . 16 105 24 . . 52 . . . . 46 21 41 8 6 . . . . . . . . . . . . . . . 207 Thermal 556 | 14 59 18 121 24 . . 133 14 . . . . . . . 5 . . . . . . . . 4 4 8 27 17 . 1 107 Explosive 143 | . . . 3 1 . . 22 4 . . . . . . . . . 13 . 4 . 4 5 . . . . . . . . 87 Electromagnetic 15 | . 3 2 . . . . . . . . . . . . . 3 . 3 . . . . . . . . . . . . . 4 Entropic 5 | . . . . . . . . . . . . . . . . . . . . . . . . . . . . . . . . 5 Robot Hit Streak 74 | 4 10 5 16 7 . . 14 6 . . . 5 8 22 5 6 . 7 . 2 . . 3 . . . . 3 3 . . 74 Robot Miss Streak 6 | 1 6 3 3 3 . . 3 4 . . . 5 4 2 2 1 . 3 . 1 . . . . 3 . . 2 . . . 3 Penetration Max 2 | . . . . . . . . . . . . 2 1 1 . . . . . . . . . . . . . . . . . 1 Secondary Targets 16 | . 2 3 2 1 . . 3 . . . . . . . . . . . . . . . . . . . . . . . . 5 Max Gunslinging Chain 1 | . 1 1 1 1 . . 1 . . . . . . . . . . . . . . . . . . . . . . . . 1 Shots Hit Robots 1180 | 8 36 23 160 32 4 . 128 81 35 . 39 87 14 36 10 32 . 73 10 7 5 11 108 . . . . 7 6 4 10 214 Core Hits 922 | 4 19 10 73 17 . . 95 30 1 . 21 28 8 13 2 12 . 67 2 12 2 9 50 . . . . 8 3 2 4 430 Critical Kills 36 | . . . . . . . . . . . . 5 1 2 . . . . . . . . . . . . . 1 . . . 27 Critical Parts Destroyed 46 | . . . 2 1 . . . 9 . . . 8 3 5 1 1 . 1 . . . . 1 . . . . . . . . 14 Critical Strikes 154 | 1 2 . 10 3 . . 8 13 1 . 2 19 5 7 1 3 . 7 2 . . . 25 . . . . 1 . . . 44 Burn 20 | 1 1 . 8 2 . . 8 . . . . . . . . . . . . . . . . . . . . . . . . . Meltdown 14 | . . . . . . . . . . . . . . . . . . . . . . . . . . . . 1 . . . 13 Destroy 58 | . . . 2 1 . . . . . . . 12 5 7 . . . . . . . . . . . . . . . . . 31 Corrupt 2 | . 1 . . . . . . . . . . . . . . . . 1 . . . . . . . . . . . . . . Smash 14 | . . . . . . . . 9 . . . 1 . . 1 1 . 1 . . . . 1 . . . . . . . . . Sever 40 | . . . . . . . . 4 1 . 2 3 . . . 2 . 4 2 . . . 22 . . . . . . . . . Impale 6 | . . . . . . . . . . . . 3 . . . . . 1 . . . . 2 . . . . . . . . . Melee Attacks 791 | . . . 7 2 4 . 7 90 40 . 105 78 1 2 9 64 8 101 16 12 5 17 144 . . . . 3 17 10 21 28 Impact 94 | . . . 3 . . . 2 40 1 . . 11 1 . 9 12 1 5 . . . . 9 . . . . . . . . . Slashing 536 | . . . 4 2 . . 5 50 11 . 103 21 . . . 50 7 63 15 8 . 12 110 . . . . 3 15 10 19 28 Piercing 92 | . . . . . . . . . . . 1 22 . . . 1 . 32 1 4 2 5 24 . . . . . . . . . Sneak Attacks 142 | . . . . . 4 . . 11 30 . 9 31 . 2 . 2 . 17 2 5 3 11 9 . . . . . 3 . 3 . Combat Hostiles 11 | . . . . . . . . 1 3 . . 3 . . . . . 2 . . . . 2 . . . . . . . . . Follow-up Attacks 85 | . . . . . . . . 16 2 . 9 4 . . . 4 . 19 3 . . 3 25 . . . . . . . . . Damage Inflicted 92203 | 100 498 275 2542 515 . 1 4497 3710 403 . 2022 3078 452 992 460 2162 . 7231 486 939 169 1324 5877 . . . . 619 470 397 1043 51941 Guns 13127 | 100 496 257 2215 466 . . 2441 171 . . . . 265 992 167 58 . . . . . . . . . . . . . . . 5499 Cannons 5333 | . . . . . . . . . . . . 722 121 . . 55 . 37 . . . . . . . . . 619 42 . . 3737 Explosions 51416 | . . . 270 49 . . 1965 381 . . . . . . . 616 . 3868 . 515 . 452 692 . . . . . . . . 42608 Melee 22210 | . . . . . . . 66 3157 403 . 2022 2356 66 . 293 1433 . 3326 486 424 169 872 5172 . . . . . 428 397 1043 97 Ramming 117 | . 2 18 57 . . 1 25 1 . . . . . . . . . . . . . . 13 . . . . . . . . . Kinetic 9537 | . . 78 942 232 . . 655 . . . . 722 386 992 167 58 . . . . . . . . . . . . . . . 5305 Thermal 9372 | 100 474 166 1273 234 . . 1786 171 . . . . . . . 616 . 154 . . . . . . . . . 619 42 . . 3737 Explosive 50646 | . . . 270 49 . . 1965 381 . . . . . . . . . 3714 . 515 . 452 692 . . . . . . . . 42608 Electromagnetic 129 | . 22 13 . . . . . . . . . . . . . 55 . 37 . . . . . . . . . . . . . 2 Impact 3433 | . . . . . . . 66 1691 . . . 467 66 . 293 308 . 171 . . . . 371 . . . . . . . . . Slashing 15769 | . . . . . . . . 1466 403 . 1952 1128 . . . 1087 . 2135 486 424 . 660 4063 . . . . . 428 397 1043 97 Piercing 3008 | . . . . . . . . . . . 70 761 . . . 38 . 1020 . . 169 212 738 . . . . . . . . . Entropic 192 | . . . . . . . . . . . . . . . . . . . . . . . . . . . . . . . . 192 Highest Corruption 13 | . 2 2 . . . . . 6 9 . 3 3 3 3 8 3 13 8 2 2 2 2 6 12 12 12 12 . . . . 13 Average Corruption 3 | . 1 2 . . . . . 2 6 . 2 3 3 2 1 2 8 2 2 2 2 2 3 9 12 12 12 . . . . 5 Corruption Purged 20 | . . . . . . . . . . . . . . 3 . 2 5 10 . . . . . . . . . . . . . . Corruption Blocked . | . . . . . . . . . . . . . . . . . . . . . . . . . . . . . . . . . Effects 284 | . 3 9 . . . . . 21 36 . 17 35 6 4 2 4 8 16 4 7 3 7 20 . 8 1 8 . . . . 65 Message Errors 86 | . 2 5 . . . . . 6 12 . 6 5 2 1 2 1 2 3 1 2 1 1 3 . 3 . 4 . . . . 24 Matter Fused 54 | . . . . . . . . 3 4 . 5 8 . . . 1 2 3 1 1 2 2 9 . . . 1 . . . . 12 Heat Flow Errors 31 | . . 1 . . . . . 2 6 . 3 7 1 . . . 2 1 . 1 . 1 2 . 1 . 1 . . . . 2 Energy Discharges 38 | . . . . . . . . 4 7 . 1 5 . 1 . 1 1 4 . 2 . 3 1 . 1 . 1 . . . . 6 Parts Rejected 6 | . . . . . . . . . . . . 2 . . . . . . . . . . 1 . . . . . . . . 3 Parts Fused 2 | . . . . . . . . 1 . . . . . 1 . . . . . . . . . . . . . . . . . . Data Loss (minor) 30 | . . 1 . . . . . 4 4 . . 3 1 . . . 1 5 1 1 . . 2 . . . 1 . . . . 6 Data Loss (major) 17 | . . . . . . . . 1 3 . 1 2 . . . . . . . . . . 2 . . 1 . . . . . 7 Misfires 7 | . . 2 . . . . . . . . . 3 . . . 1 . . . . . . . . 1 . . . . . . . Alerts 6 | . 1 . . . . . . . . . 1 . 1 . . . . . 1 . . . . . . . . . . . . 2 Misdirections 2 | . . . . . . . . . . . . . . . . . . . . . . . . . 1 . . . . . . 1 Weapon Failures 5 | . . . . . . . . . . . . . 1 1 . . . . . . . . . . 1 . . . . . . 2 Overload Shots 3 | . . . . . . . . . . . . . . . . 3 . . . . . . . . . . . . . . . . Overflow Damage 7239 | . . . . . . . 55 813 1 . 248 375 57 . 145 191 . 494 99 140 . 189 402 . . . . . 48 124 369 3489 Projectiles 100 | . . . . . . . . . . . . 15 . . . . . . . . . . . . . . . . . . . 85 Explosions 3672 | . . . . . . . 22 37 . . . . . . . 45 . 139 . 11 . 21 20 . . . . . . . . 3377 Melee 3467 | . . . . . . . 33 776 1 . 248 360 57 . 145 146 . 355 99 129 . 168 382 . . . . . 48 124 369 27 Knockbacks 18 | . . . . . . . . 2 . . . 10 . . . 2 . 2 . . . . 2 . . . . . . . . . Impact 12 | . . . . . . . . 2 . . . 4 . . . 2 . 2 . . . . 2 . . . . . . . . . Kinetic 5 | . . . . . . . . . . . . 5 . . . . . . . . . . . . . . . . . . . . Secondary 1 | . . . . . . . . . . . . 1 . . . . . . . . . . . . . . . . . . . . Self-Inflicted Damage 220 | . . . . . . . 89 29 . . . . . . . . . 31 . . . 43 1 . . . . . . . . 27 Shots 6 | . . . . . . . 2 1 . . . . . . . . . 1 . . . 1 . . . . . . . . . 1 Rammed 23 | . 3 1 9 2 . 1 5 1 . . . . . . . . . . . . . . 1 . . . . . . . . . Targets Rammed 33 | . 3 5 14 2 . 1 5 1 . . . . . . . . . . . . . . 2 . . . . . . . . . Kicked 6 | . . 4 1 . . . . . . . . . . . . . . . . . . . 1 . . . . . . . . . Crushed 4 | . . . 4 . . . . . . . . . . . . . . . . . . . . . . . . . . . . . Highest Temperature 432 | 117 298 213 264 182 . . 318 217 265 . 164 249 240 . . 408 233 88 2 202 2 100 262 . 225 . 177 102 432 . . 214 Average Temperature 57 | 42 107 86 44 62 . . 85 75 99 . 26 61 125 . . 175 109 7 1 21 1 68 75 . 139 . 94 39 104 . . 104 Received Heat Transfer 4597 | . 102 81 267 134 . . 972 612 21 . 341 406 . 20 27 81 . 540 81 9 . . 618 . 27 . . 18 . 9 . 231 Effects 3 | . 2 . . . . . . . . . . . . . . 1 . . . . . . . . . . . . . . . . Shutdowns 1 | . . . . . . . . . . . . . . . . 1 . . . . . . . . . . . . . . . . Energy Bleed 2 | . 2 . . . . . . . . . . . . . . . . . . . . . . . . . . . . . . . Siege Activations . | . . . . . . . . . . . . . . . . . . . . . . . . . . . . . . . . . Martial Activations . | . . . . . . . . . . . . . . . . . . . . . . . . . . . . . . . . . Shielding Activations . | . . . . . . . . . . . . . . . . . . . . . . . . . . . . . . . . . Robots Disrupted . | . . . . . . . . . . . . . . . . . . . . . . . . . . . . . . . . . Combat Hostiles . | . . . . . . . . . . . . . . . . . . . . . . . . . . . . . . . . . Robots Corrupted 14 | . . . . . . . . 6 . . . 2 1 . 1 1 . 1 . . . . 2 . . . . . . . . . Combat Hostiles 8 | . . . . . . . . 4 . . . 1 . . 1 1 . 1 . . . . . . . . . . . . . . Parts Fried 16 | . . . . . . . . 10 . . . 2 1 . . . . . . . . . 3 . . . . . . . . . Impact Corruptions 50 | . . . . . . . 1 21 . . . 7 3 . 5 2 . 6 . . . . 5 . . . . . . . . . Robots Melted 14 | . . . . . . . . . . . . . . . . . . . . . . . . . . . . 1 . . . 13 Combat Hostiles 13 | . . . . . . . . . . . . . . . . . . . . . . . . . . . . 1 . . . 12 Parts Melted 42 | 1 2 . 4 . . . 8 . . . 1 1 . . . . . . . . . . . . . . . 2 . . . 23 Heat Transferred 15269 | 370 1443 481 3663 740 . . 4065 400 . . . . . . . 500 . 100 . . . . . . . . . 518 37 . . 2952 Parts Sabotaged 3 | . . . . . . . . . . . . . . . . . . 3 . . . . . . . . . . . . . . Parts Stolen . | . . . . . . . . . . . . . . . . . . . . . . . . . . . . . . . . . Parts Stripped . | . . . . . . . . . . . . . . . . . . . . . . . . . . . . . . . . . Power Chain Reactions . | . . . . . . . . . . . . . . . . . . . . . . . . . . . . . . . . . Alert | -11 -10 -10 -9 -9 -9 -8 -8 -8 -8 -8 -6 -6 -6 -6 -6 -5 -5 -5 -5 -5 -5 -4 -4 -4 -4 -4 -4 -3 -3 -2 -2 -2 ------- Run | Yrd Mat Min Mat Min Exi Min Mat Sto Rec Scr Fac Ext Cet Arc Hub Fac Was Fac Upp Upp Zhi Pro Fac Was Fac Arm Lab Res Tes Res Qua Frg Maximum Alert Level 5 | . . . 1 . . . 2 1 . . 2 3 3 2 . 1 . 5 . . . . 1 . . . . . . . . 5 Low Security (%) 60 | 100 100 100 88 100 . 100 37 51 100 . 47 52 . 25 100 86 100 22 . . . . 93 100 100 100 . 100 100 100 100 19 Level 1 15 | . . . 11 . . . 20 48 . . 47 20 . 62 . 13 . 3 . . . . 6 . . . . . . . . 4 Level 2 9 | . . . . . . . 41 . . . 5 17 13 11 . . . 6 . . . . . . . . . . . . . 9 Level 3 4 | . . . . . . . . . . . . 8 86 . . . . 9 . . . . . . . . . . . . . 15 Level 4 5 | . . . . . . . . . . . . . . . . . . 39 . . . . . . . . . . . . . 22 Level 5 4 | . . . . . . . . . . . . . . . . . . 6 . . . . . . . . . . . . . 28 High Security . | . . . . . . . . . . . . . . . . . . 12 . . . . . . . . . . . . . . Max Security . | . . . . . . . . . . . . . . . . . . . . . . . . . . . . . . . . . Peak Influence 4103 | 5 149 96 248 70 . . 497 382 105 . 446 1096 829 428 195 376 66 2618 . . . . 238 85 52 4 . 138 99 55 74 4103 Initial 612 | . . 23 . 70 . . . 123 52 . . 104 612 307 40 53 . 18 . . . . . 70 52 . . . 69 55 8 . Average 371 | . 52 22 122 10 . . 274 208 16 . 196 243 750 275 89 97 29 1090 . . . . 73 77 21 1 . 65 58 25 21 1381 Influence Increases 19186 | 20 288 153 1081 53 . . 1040 959 194 . 1134 1800 347 231 360 670 98 3604 25 135 10 105 1114 15 14 4 . 312 247 75 188 4910 Destroy 0b10 Robot/C 9200 | . 200 120 600 40 . . 660 520 100 . 280 860 160 80 140 200 . 1420 20 60 . 80 520 . . . . 80 20 . . 3040 Destroy 0b10 Robot/NC 675 | 20 10 . 75 . . . 65 60 . . 50 45 10 10 5 20 . 65 5 5 10 15 40 . . . . 10 15 20 25 95 Destroy Leader 1656 | . 44 30 184 10 . . 154 162 . . 54 112 . . 42 44 . 230 . 10 . 10 106 . . . . 22 . 6 6 430 Allied During Kill 1406 | . . 3 . . . . . 13 73 . 42 605 170 68 71 . . 361 . . . . . . . . . . . . . . Trap Triggered on 0b10 100 | . . . . . . . 10 . . . 30 . . . . . . . . . . . . . . . . 10 . . . 50 Successful Hack 510 | . 33 . 51 . . . 7 27 18 . 12 45 . . . 65 . 12 . . . . 42 . 14 . . 55 45 4 37 43 Select Force Hacks 50 | . . . . . . . . . . . . . . . 50 . . . . . . . . . . . . . . . . . Disable Machine 1500 | . . . 15 . . . 60 120 . . 15 . . 60 . 105 . 300 . . . . 60 . . . . 15 75 . 105 570 Anti-Garrison Action 150 | . . . . . . . . . . . . . . . . . . . . . . . . . . . . . . . . 150 Destroy Structure 1674 | . 1 . 36 3 . . 84 42 3 . 36 43 7 13 7 116 98 586 . . . . 76 . . 4 . 30 32 15 15 427 Partial Spotted 285 | . . . 15 . . . . . . . 15 . . . 15 . . 90 . . . . 30 15 . . . 30 30 15 . 30 Lose Combat Pursuer 1980 | . . . 105 . . . . 15 . . 600 90 . . 30 120 . 540 . 60 . . 240 . . . . 60 30 15 . 75 Influence Decreases 15095 | 20 227 214 899 235 . . 747 1118 328 . 921 920 671 884 367 777 74 1012 1228 484 1076 105 914 140 89 . 4 189 271 159 203 819 Entered New Map 4164 | . . 38 . 112 . . . 170 82 . . 109 481 462 76 56 2 8 970 270 1066 . . 130 23 . 4 . 54 44 7 . Time Decay 7421 | 20 217 176 635 123 . . 567 598 206 . 486 447 150 362 180 337 72 522 238 214 10 105 497 10 66 . . 159 138 66 171 649 Lost Part 795 | . 10 . 20 . . . 30 50 . . 140 25 . . . 10 . 100 20 . . . 210 . . . . 20 . . . 160 Lost Ally 847 | . . . . . . . . . 40 . 145 189 40 60 111 . . 232 . . . . 10 . . . . 10 . . . 10 Purge Threat 1868 | . . . 244 . . . 150 300 . . 150 150 . . . 374 . 150 . . . . 197 . . . . . 79 49 25 . Squads Dispatched 119 | . 2 . 3 . . . 7 4 . . 14 6 . . 3 15 . 31 . . . . 10 . 3 . . 5 5 2 2 7 Investigation 50 | . 1 . 1 . . . . 2 . . 8 3 . . 1 8 . 9 . . . . 5 . 2 . . 4 . 1 . 5 Extermination 19 | . . . . . . . . . . . 4 . . . 1 2 . 3 . . . . 3 . 1 . . . 1 1 2 1 Reinforcement 30 | . 1 . 2 . . . 3 2 . . 2 3 . . 1 5 . 7 . . . . . . . . . 1 2 . . 1 Assault 15 | . . . . . . . 1 . . . . . . . . . . 12 . . . . . . . . . . 2 . . . Garrison 5 | . . . . . . . 3 . . . . . . . . . . . . . . . 2 . . . . . . . . . Intercept . | . . . . . . . . . . . . . . . . . . . . . . . . . . . . . . . . . Searches Triggered . | . . . . . . . . . . . . . . . . . . . . . . . . . . . . . . . . . Construction Impeded 3 | . . . . . . . . . . . . 2 . . . . . 1 . . . . . . . . . . . . . . Haulers Reinforced . | . . . . . . . . . . . . . . . . . . . . . . . . . . . . . . . . . Active Scanning Responses . | . . . . . . . . . . . . . . . . . . . . . . . . . . . . . . . . . Cargo Convoy Interrupts 2 | . . . . . . . . . . . 1 . . . . 1 . . . . . . . . . . . . . . . . Stealth | -11 -10 -10 -9 -9 -9 -8 -8 -8 -8 -8 -6 -6 -6 -6 -6 -5 -5 -5 -5 -5 -5 -4 -4 -4 -4 -4 -4 -3 -3 -2 -2 -2 --------- Run | Yrd Mat Min Mat Min Exi Min Mat Sto Rec Scr Fac Ext Cet Arc Hub Fac Was Fac Upp Upp Zhi Pro Fac Was Fac Arm Lab Res Tes Res Qua Frg Distress Signals 42 | . 2 . 3 . . . 2 2 . . 3 7 2 . . 3 . 3 . . . . 2 . . . . 4 1 . . 8 Communications Jammed 117 | . . . . . . . . . . . 7 2 . . . . . 30 . . . . 22 . 4 . . 7 15 12 . 18 Distress Signals 101 | . . . . . . . . . . . . 2 . . . . . 22 . . . . 22 . 4 . . 7 15 11 . 18 Times Spotted 848 | . 21 6 55 11 . . 55 36 3 . 69 58 9 16 16 30 6 105 1 7 . 2 61 4 9 . . 17 7 11 7 226 Peak Tracking Total 18 | . 6 2 6 4 . . 8 6 2 . 18 5 5 2 8 6 5 14 1 4 . 1 10 4 8 . . 8 3 3 1 12 Tactical Retreats 67 | . . . 7 1 . . . 1 . . 15 6 . . 1 5 . 13 . 1 . . 5 . . . . 3 1 1 . 7 Traps | -11 -10 -10 -9 -9 -9 -8 -8 -8 -8 -8 -6 -6 -6 -6 -6 -5 -5 -5 -5 -5 -5 -4 -4 -4 -4 -4 -4 -3 -3 -2 -2 -2 ------- Run | Yrd Mat Min Mat Min Exi Min Mat Sto Rec Scr Fac Ext Cet Arc Hub Fac Was Fac Upp Upp Zhi Pro Fac Was Fac Arm Lab Res Tes Res Qua Frg Traps Triggered 30 | . 3 . . . . . . 5 . . 2 1 . . . 1 . 4 . . . . 1 . 1 . . . 1 . . 11 Indirectly . | . . . . . . . . . . . . . . . . . . . . . . . . . . . . . . . . . Trap Hack Attempts 81 | . . . 55 . . . 26 . . . . . . . . . . . . . . . . . . . . . . . . . Triggered . | . . . . . . . . . . . . . . . . . . . . . . . . . . . . . . . . . Disarmed 4 | . . . 2 . . . 2 . . . . . . . . . . . . . . . . . . . . . . . . . Reprogrammed 19 | . . . 4 . . . . 2 . . . . . . . . . . . . . . . . . . . 6 . . . 7 Reused 10 | . . . . . . . 1 . . . 3 . . . . . . . . . . . . . . . . 1 . . . 5 Traps Extracted 4 | . . . 4 . . . . . . . . . . . . . . . . . . . . . . . . . . . . . Installed 7 | . . . . . . . 4 . . . 3 . . . . . . . . . . . . . . . . . . . . . Triggered 10 | . . . . . . . 1 . . . 3 . . . . . . . . . . . . . . . . 1 . . . 5 Most Traps Carried 6 | . . . 4 4 4 4 4 . . 3 3 . . . . . . . . 6 6 6 6 6 6 6 6 . . . . . Machines | -11 -10 -10 -9 -9 -9 -8 -8 -8 -8 -8 -6 -6 -6 -6 -6 -5 -5 -5 -5 -5 -5 -4 -4 -4 -4 -4 -4 -3 -3 -2 -2 -2 ---------- Run | Yrd Mat Min Mat Min Exi Min Mat Sto Rec Scr Fac Ext Cet Arc Hub Fac Was Fac Upp Upp Zhi Pro Fac Was Fac Arm Lab Res Tes Res Qua Frg Machines Disabled 117 | . . . 2 . . . 4 8 . . 1 4 1 4 . 7 . 20 . . . . 4 . . . 2 1 6 . 7 46 Max in Single Turn 5 | . . . 1 . . . 1 1 . . . . . 2 . 5 . 4 . . . . 2 . . . 1 1 1 . 1 5 Garrison Access 10 | . . . . . . . 1 1 . . 2 . . . . 1 . 1 . . . . . . . . . 2 . . 1 1 Network Hub 1 | . . . . . . . . . . . . . . . 1 . . . . . . . . . . . . . . . . . Machines Repaired . | . . . . . . . . . . . . . . . . . . . . . . . . . . . . . . . . . Machines Dismantled 1 | . . . . . . . . 1 . . . . . . . . . . . . . . . . . . . . . . . . Machines Sabotaged 1 | . . . . . . . . . . . . . . . 1 . . . . . . . . . . . . . . . . . Overloaded Fab Kills . | . . . . . . . . . . . . . . . . . . . . . . . . . . . . . . . . . Hacking | -11 -10 -10 -9 -9 -9 -8 -8 -8 -8 -8 -6 -6 -6 -6 -6 -5 -5 -5 -5 -5 -5 -4 -4 -4 -4 -4 -4 -3 -3 -2 -2 -2 --------- Run | Yrd Mat Min Mat Min Exi Min Mat Sto Rec Scr Fac Ext Cet Arc Hub Fac Was Fac Upp Upp Zhi Pro Fac Was Fac Arm Lab Res Tes Res Qua Frg Machines Accessed 187 | . 5 . 13 1 1 . 12 14 6 3 16 16 1 . 1 19 . 16 2 1 4 . 10 . 3 . . 8 7 5 7 16 Terminals 99 | . 4 . 10 1 . . 6 10 6 . 4 14 1 . 1 6 . 3 1 1 . . 4 . . . . 4 4 3 6 10 Fabricators 11 | . . . . . . . . . . . 1 . . . . 4 . 2 . . . . 1 . . . . 1 1 . . 1 Repair Stations 16 | . . . 2 . . . 2 2 . . 1 1 . . . . . 3 . . . . . . 1 . . 1 2 . . 1 Recycling Units 36 | . 1 . . . . . 1 1 . . 7 1 . . . 6 . 7 . . . . 4 . 2 . . 1 . 2 . 3 Scanalyzers 6 | . . . 1 . . . 2 . . . 1 . . . . 2 . . . . . . . . . . . . . . . . Garrison Access 10 | . . . . . . . 1 1 . . 2 . . . . 1 . 1 . . . . 1 . . . . 1 . . 1 1 Total Hacks 497 | . 12 . 48 1 1 . 45 29 15 9 33 32 3 . 3 52 . 34 2 1 17 . 30 . 5 . . 19 31 11 24 40 Successful 276 | . 5 . 25 . 1 . 20 13 9 9 16 17 . . 1 27 . 19 2 1 17 . 11 . 3 . . 10 24 7 16 23 Failed 218 | . 7 . 22 1 . . 25 16 5 . 17 15 3 . 2 25 . 15 . . . . 19 . 2 . . 9 7 4 7 17 Catastrophic 43 | . 1 . 2 1 . . 3 2 . . 2 3 1 . . 6 . 6 . . . . 5 . 1 . . 3 . 2 2 3 Database Lockouts 3 | . . . 1 . . . . . 1 . . . . . . . . . . . . . . . . . . . . . 1 . Manual 234 | . 9 . 30 1 . . 11 13 14 . 18 15 . . 3 21 . 18 . . . . 15 . 2 . . 10 15 5 16 18 Terminals 288 | . 11 . 35 1 . . 15 20 15 . 9 30 3 . 3 22 . 8 1 1 . . 16 . . . . 14 24 9 23 28 Fabricators 24 | . . . . . . . . . . . 2 . . . . 8 . 7 . . . . 2 . . . . 1 1 . . 3 Repair Stations 49 | . . . 10 . . . 13 6 . . 1 1 . . . . . 8 . . . . . . 1 . . 2 6 . . 1 Recycling Units 66 | . 1 . . . . . 2 1 . . 15 1 . . . 15 . 10 . . . . 10 . 4 . . 1 . 2 . 4 Scanalyzers 23 | . . . 3 . . . 11 . . . 3 . . . . 6 . . . . . . . . . . . . . . . . Garrison Access 19 | . . . . . . . 4 2 . . 3 . . . . 1 . 1 . . . . 2 . . . . 1 . . 1 4 Terminal Hacks 129 | . 2 . 13 . 1 . 4 7 3 9 1 11 . . . 7 . 1 2 1 17 . 6 . . . . 5 13 5 8 13 Record 12 | . . . . . 1 . . . . 3 . . . . . . . . 1 1 5 . . . . . . . . . . 1 Part Schematic 6 | . . . 1 . . . . . . . . . . . . . . . . . 4 . . . . . . . . . 1 . Robot Analysis 22 | . 1 . 4 . . . . . 1 5 . 1 . . . . . . . . 4 . . . . . . . 4 1 . 1 Prototype ID Bank 11 | . . . 1 . . . . 1 1 . . 2 . . . 1 . . . . 4 . . . . . . . 1 . . . Open Door 8 | . . . . . . . . 2 . . . 5 . . . . . . 1 . . . . . . . . . . . . . Branch Access Points 3 | . . . . . . . . . . . . . . . . 1 . . . . . . . . . . . 1 . 1 . . Terminal Index 3 | . . . . . . . . . 1 . . . . . . . . . . . . . 1 . . . . . 1 . . . Recycling Unit Index 1 | . . . . . . . . . . . . . . . . . . . . . . . . . . . . 1 . . . . Scanalyzer Index 1 | . . . . . . . 1 . . . . . . . . . . . . . . . . . . . . . . . . . Alert Level 1 | . . . . . . . . . . . . . . . . . . . . . . . . . . . . . . . . 1 Unreport Threat 17 | . . . 2 . . . 1 2 . . 1 1 . . . 3 . 1 . . . . 2 . . . . . 2 1 1 . Locate Traps 14 | . 1 . . . . . 1 1 . . . . . . . 2 . . . . . . . . . . . 2 1 1 1 4 Reprogram Traps 4 | . . . . . . . . 1 . . . . . . . . . . . . . . . . . . . 1 . . . 2 Recall Extermination 2 | . . . . . . . . . . . . . . . . . . . . . . . . . . . . . . . 2 . Hauler Manifests 1 | . . . . . . . . . . . . . . . . . . . . . . . . . . . . . . 1 . . Registered Components 1 | . . . 1 . . . . . . . . . . . . . . . . . . . . . . . . . . . . . Zone Layout 18 | . . . 4 . . . 1 . . . . 2 . . . . . . . . . . 3 . . . . . 2 . 3 3 Proto ID Catalog 2 | . . . . . . . . . . 1 . . . . . . . . . . . . . . . . . . . . . 1 Protovariant Controls 2 | . . . . . . . . . . . . . . . . . . . . . . . . . . . . . 2 . . . Fabricator Hacks 11 | . . . . . . . . . . . . . . . . 4 . 3 . . . . 1 . . . . 1 . . . 2 Network Status 2 | . . . . . . . . . . . . . . . . 1 . 1 . . . . . . . . . . . . . . Load Schematic 3 | . . . . . . . . . . . . . . . . 1 . 1 . . . . . . . . . . . . . 1 Build 6 | . . . . . . . . . . . . . . . . 2 . 1 . . . . 1 . . . . 1 . . . 1 Repair Station Hacks 30 | . . . 8 . . . 8 2 . . . . . . . . . 3 . . . . . . 1 . . 1 6 . . 1 Scan Component 15 | . . . 4 . . . 4 2 . . . . . . . . . 2 . . . . . . . . . . 3 . . . Repair 12 | . . . 4 . . . 4 . . . . . . . . . . 1 . . . . . . . . . . 3 . . . Refit 3 | . . . . . . . . . . . . . . . . . . . . . . . . . 1 . . 1 . . . 1 Recycling Unit Hacks 9 | . . . . . . . 1 . . . 1 . . . . 2 . 2 . . . . . . . . . . . 1 . 2 Retrieve Components 9 | . . . . . . . 1 . . . 1 . . . . 2 . 2 . . . . . . . . . . . 1 . 2 Scanalyzer 13 | . . . 3 . . . 5 . . . 2 . . . . 3 . . . . . . . . . . . . . . . . Insert Component 8 | . . . 2 . . . 3 . . . 1 . . . . 2 . . . . . . . . . . . . . . . . Analyze 5 | . . . 1 . . . 2 . . . 1 . . . . 1 . . . . . . . . . . . . . . . . Garrison Access Hacks 8 | . . . . . . . 1 1 . . 2 . . . . 1 . 1 . . . . . . . . . 1 . . 1 . Seal Access 8 | . . . . . . . 1 1 . . 2 . . . . 1 . 1 . . . . . . . . . 1 . . 1 . Unauthorized Hacks 76 | . 3 . 1 . . . 1 3 6 . 10 6 . . 1 10 . 9 . . . . 4 . 2 . . 2 5 1 7 5 Terminals 36 | . 2 . 1 . . . . 1 6 . 2 5 . . 1 2 . . . . . . . . . . . 1 4 . 7 4 Track 4 | . . . . . . . . . . . . 1 . . . . . . . . . . . . . . . . 1 . 2 . Assimilate 11 | . 1 . . . . . . . . . . 1 . . . 1 . . . . . . . . . . . 1 . . 4 3 Botnet 9 | . 1 . 1 . . . . 1 1 . 1 1 . . . . . . . . . . . . . . . . 1 . 1 1 Disrupt 5 | . . . . . . . . . . . 1 2 . . . 1 . . . . . . . . . . . . 1 . . . Operators 1 | . . . . . . . . . . . . . . . . . . . . . . . . . . . . . 1 . . . Skim 5 | . . . . . . . . . 5 . . . . . . . . . . . . . . . . . . . . . . . Sabotage 1 | . . . . . . . . . . . . . . . 1 . . . . . . . . . . . . . . . . . Fabricators 4 | . . . . . . . . . . . . . . . . 2 . 1 . . . . . . . . . . 1 . . . Liberate 2 | . . . . . . . . . . . . . . . . . . 1 . . . . . . . . . . 1 . . . Recompile 2 | . . . . . . . . . . . . . . . . 2 . . . . . . . . . . . . . . . . Repair Stations 3 | . . . . . . . . 1 . . 1 . . . . . . 1 . . . . . . . . . . . . . . Patch 3 | . . . . . . . . 1 . . 1 . . . . . . 1 . . . . . . . . . . . . . . Recycling Units 33 | . 1 . . . . . 1 1 . . 7 1 . . . 6 . 7 . . . . 4 . 2 . . 1 . 1 . 1 Reject 3 | . 1 . . . . . 1 1 . . . . . . . . . . . . . . . . . . . . . . . . Fedlink 29 | . . . . . . . . . . . 7 1 . . . 6 . 6 . . . . 4 . 2 . . 1 . 1 . 1 Scraphulk 1 | . . . . . . . . . . . . . . . . . . 1 . . . . . . . . . . . . . . Scanalyzers . | . . . . . . . . . . . . . . . . . . . . . . . . . . . . . . . . . Garrison Access . | . . . . . . . . . . . . . . . . . . . . . . . . . . . . . . . . . Data Cores Recovered 3 | . . . . . . . 1 . . . . . . . . . . . . . . . . . . . . . 1 1 . . Used 2 | . . . . . . . 1 . . . . . . . . . . . . . . . . . . . . . . 1 . . Hacking Detections 123 | . 4 . 12 1 . . 11 12 5 . 11 9 1 . 1 9 . 7 . . . . 8 . 2 . . 6 3 3 5 13 Full Trace Events 11 | . 1 . 1 . . . 1 1 . . . 2 . . . . . 1 . . . . 1 . . . . 1 . . . 2 Feedback Events . | . . . . . . . . . . . . . . . . . . . . . . . . . . . . . . . . . Feedback Blocked . | . . . . . . . . . . . . . . . . . . . . . . . . . . . . . . . . . Robot Schematics Acquired 3 | . . . . . . . . . . . . . . . . . . . . . . . . . . . . . 3 . . . Robots Built . | . . . . . . . . . . . . . . . . . . . . . . . . . . . . . . . . . Authchips . | . . . . . . . . . . . . . . . . . . . . . . . . . . . . . . . . . Time . | . . . . . . . . . . . . . . . . . . . . . . . . . . . . . . . . . Total Robot Build Rating . | . . . . . . . . . . . . . . . . . . . . . . . . . . . . . . . . . Part Schematics Acquired 17 | . . . 2 . . . 1 . . . . . . . . . . . . . 4 . . . . . . . 4 . 3 3 Parts Built 8 | . . . . . . . . . . . . . . . . 2 . 2 . . . . 1 . . . . 2 . . . 1 Authchips 2 | . . . . . . . . . . . . . . . . 1 . 1 . . . . . . . . . . . . . . Time 290 | . . . . . . . . . . . . . . . . 111 . 47 . . . . 46 . . . . 69 . . . 17 Total Part Build Rating 48 | . . . . . . . . . . . . . . . . 10 . 10 . . . . 9 . . . . 18 . . . 1 Parts Repaired 12 | . . . 4 . . . 4 . . . . . . . . . . 1 . . . . . . . . . . 3 . . . Time 605 | . . . 146 . . . 282 . . . . . . . . . . 108 . . . . . . . . . . 69 . . . Parts Recycled . | . . . . . . . . . . . . . . . . . . . . . . . . . . . . . . . . . Recycled Matter . | . . . . . . . . . . . . . . . . . . . . . . . . . . . . . . . . . Retrieved Matter . | . . . . . . . . . . . . . . . . . . . . . . . . . . . . . . . . . Retrieved Components 20 | . . . . . . . 6 . . . 2 . . . . 3 . 3 . . . . . . . . . . . 3 . 3 Parts Scanalyzed 4 | . . . 1 . . . 2 . . . . . . . . 1 . . . . . . . . . . . . . . . . Part Schematics Acquired 2 | . . . 1 . . . 1 . . . . . . . . . . . . . . . . . . . . . . . . . Parts Damaged 2 | . . . . . . . 2 . . . . . . . . . . . . . . . . . . . . . . . . . Bothacking | -11 -10 -10 -9 -9 -9 -8 -8 -8 -8 -8 -6 -6 -6 -6 -6 -5 -5 -5 -5 -5 -5 -4 -4 -4 -4 -4 -4 -3 -3 -2 -2 -2 ------------ Run | Yrd Mat Min Mat Min Exi Min Mat Sto Rec Scr Fac Ext Cet Arc Hub Fac Was Fac Upp Upp Zhi Pro Fac Was Fac Arm Lab Res Tes Res Qua Frg Used RIF Installer . | . . . . . . . . . . . . . . . . . . . . . . . . . . . . . . . . . Robots Hacked 20 | . . . . . 4 . . . 1 . 1 . . 2 . 1 . 1 . . 3 . 1 . . . . . 2 . 2 2 Non-combat 6 | . . . . . 3 . . . 1 . . . . 2 . . . . . . . . . . . . . . . . . . Combat 4 | . . . . . 1 . . . . . . . . . . . . . . . 3 . . . . . . . . . . . Robot Hacks Applied 10 | . . . . . 4 . . . 1 . . . . 2 . . . . . . 3 . . . . . . . . . . . parse_system 7 | . . . . . 4 . . . . . . . . . . . . . . . 3 . . . . . . . . . . . no_distress 1 | . . . . . . . . . 1 . . . . . . . . . . . . . . . . . . . . . . . check_alert 2 | . . . . . . . . . . . . . . 2 . . . . . . . . . . . . . . . . . . Manual 10 | . . . . . . . . . . . 1 . . . . 1 . 1 . . . . 1 . . . . . 2 . 2 2 Relay Couplers Released 14 | . . . . . . . . . . . 4 . . . . . . 3 . . . . 3 . . . . 1 . . . 3 Machine Destruction 4 | . . . . . . . . . . . . . . . . . . . . . . . . . . . . 1 . . . 3 Programmers 10 | . . . . . . . . . . . 4 . . . . . . 3 . . . . 3 . . . . . . . . . Fabnet Peak Effective % . | . . . . . . . . . . . . . . . . . . . . . . . . . . . . . . . . . Robots Rewired 35 | . . . . . . . . . 16 . . 19 . . . . . . . . . . . . . . . . . . . . Allies Hacked 1 | . . . . . . . . . . . . . . . 1 . . . . . . . . . . . . . . . . . Hacks Repelled . | . . . . . . . . . . . . . . . . . . . . . . . . . . . . . . . . . Allies | -11 -10 -10 -9 -9 -9 -8 -8 -8 -8 -8 -6 -6 -6 -6 -6 -5 -5 -5 -5 -5 -5 -4 -4 -4 -4 -4 -4 -3 -3 -2 -2 -2 -------- Run | Yrd Mat Min Mat Min Exi Min Mat Sto Rec Scr Fac Ext Cet Arc Hub Fac Was Fac Upp Upp Zhi Pro Fac Was Fac Arm Lab Res Tes Res Qua Frg Total Allies 83 | . . 1 . . . . . 10 16 . 1 26 . . . 2 19 2 . . . . 1 . . . . 1 . . 2 2 Largest Group 24 | . . 1 . . . . . 10 24 20 16 17 14 12 9 1 19 14 . . . . 1 . . . . 1 . . 2 2 Highest-Rated Group 702 | . . 31 . . . . . 173 427 357 295 491 399 332 251 23 702 577 . . . . 35 . . . . 45 . . 71 81 Highest-Rated Ally 159 | . . 31 . . . . . 29 29 29 29 159 39 39 39 23 50 123 . . . . 35 . . . . 45 . . 45 45 Total Orders 29 | . . . . . . . . . . 3 16 6 . . . . . . . . . . . . . . . . . . 3 1 STAY 19 | . . . . . . . . . . 2 12 4 . . . . . . . . . . . . . . . . . . . 1 ROAM 2 | . . . . . . . . . . . . . . . . . . . . . . . . . . . . . . . 2 . FOLLOW 8 | . . . . . . . . . . 1 4 2 . . . . . . . . . . . . . . . . . . 1 . Ally Attacks 605 | . . 6 . . . . . 10 26 . 51 196 43 23 32 . 105 113 . . . . . . . . . . . . . . Total Damage 15515 | . . 82 . . . . . 96 384 . 567 3640 612 279 603 . 4328 4924 . . . . . . . . . . . . . . Kills 104 | . . . . . . . . 1 4 . 3 33 6 3 5 . 11 38 . . . . . . . . . . . . . . Allies Corrupted 4 | . . . . . . . . . 1 . . . . . 1 . . 2 . . . . . . . . . . . . . . Allies Melted 3 | . . . . . . . . . . . . . . . . . . . . . . . . . . . . . . . . 3 Intel | -11 -10 -10 -9 -9 -9 -8 -8 -8 -8 -8 -6 -6 -6 -6 -6 -5 -5 -5 -5 -5 -5 -4 -4 -4 -4 -4 -4 -3 -3 -2 -2 -2 ------- Run | Yrd Mat Min Mat Min Exi Min Mat Sto Rec Scr Fac Ext Cet Arc Hub Fac Was Fac Upp Upp Zhi Pro Fac Was Fac Arm Lab Res Tes Res Qua Frg Active Infowar (turns) 11892 | . . . . . . . 74 . . . 1197 603 . . 48 777 61 1246 506 454 125 668 1080 . 129 39 230 376 314 190 488 3287 Optics 4508 | . . . . . . . . . . . 263 . . . . . . . . . . . . . . . . . 280 190 488 3287 Sensors 8466 | . . . . . . . 74 . . . 866 15 . . 48 777 61 730 450 430 125 644 454 . 127 39 230 352 314 190 484 2056 Traps 3 | . . . . . . . . . . . . . . . . . . . . . . . 3 . . . . . . . . . Cloaking 1247 | . . . . . . . . . . . . . . . . . . . . . . . . . . . . . . . . 1247 Jamming 4173 | . . . . . . . . . . . 68 588 . . . . . 516 56 24 . 42 1053 . 20 30 . 376 314 190 488 408 ECM 349 | . . . . . . . . . . . . . . . . . . . . . . . . . . . . . . . 3 346 Robot Analysis Total 22 | . 1 . 4 . . . . . 1 5 . 1 . . . . . . . . 4 . . . . . . . 4 1 . 1 Derelict Logs Recovered 8 | . . 2 . 1 . . . . . . . . . . . . . . 1 2 . 2 . . . . . . . . . . Drone Launches . | . . . . . . . . . . . . . . . . . . . . . . . . . . . . . . . . . Drone Recoveries . | . . . . . . . . . . . . . . . . . . . . . . . . . . . . . . . . . Exploration | -11 -10 -10 -9 -9 -9 -8 -8 -8 -8 -8 -6 -6 -6 -6 -6 -5 -5 -5 -5 -5 -5 -4 -4 -4 -4 -4 -4 -3 -3 -2 -2 -2 ------------- Run | Yrd Mat Min Mat Min Exi Min Mat Sto Rec Scr Fac Ext Cet Arc Hub Fac Was Fac Upp Upp Zhi Pro Fac Was Fac Arm Lab Res Tes Res Qua Frg Turns Passed 31054 | 269 730 750 2910 794 399 152 3328 1901 978 2495 1662 1900 300 835 386 1049 188 1718 509 454 126 683 1420 33 162 39 230 376 314 190 488 3286 Spaces Moved 25487 | 145 369 479 1333 370 229 89 1261 819 482 1394 1909 1172 159 89 236 1104 177 1717 664 585 163 947 892 79 313 38 161 626 488 501 1090 5407 Core 294 | 3 . . . . . . . . . . . 27 . . . . . . . . . . 149 . . . 115 . . . . . Treads 6372 | 142 369 228 1107 370 229 89 1261 819 482 1276 . . . . . . . . . . . . . . . . . . . . . . Legs 2161 | . . 251 226 . . . . . . . . 668 159 89 183 . . . . . . . 584 . . . . . . . . 1 Wheels 118 | . . . . . . . . . . 118 . . . . . . . . . . . . . . . . . . . . . . Hover 7933 | . . . . . . . . . . . 1909 477 . . 53 1104 177 1717 664 585 163 947 137 . . . . . . . . . Flight 8609 | . . . . . . . . . . . . . . . . . . . . . . . 22 79 313 38 46 626 488 501 1090 5406 Fastest Speed 10 | 50 160 120 120 170 170 170 170 166 170 125 47 58 120 120 68 65 65 56 60 63 56 56 40 40 40 40 40 34 28 28 28 10 Average Speed 81 | 157 160 139 161 170 170 170 170 168 170 166 51 111 120 120 110 65 65 62 66 63 60 56 96 40 40 48 119 36 29 28 28 19 Slowest Speed 260 | 160 160 160 170 170 170 170 170 250 170 170 65 220 120 120 260 65 65 144 141 63 63 56 150 40 40 120 150 40 34 28 28 140 Overloaded Moves 98 | . . . . . . . . . . . . . . . . . . . . . . . . . . . . . . . . 98 Propulsion Burnouts . | . . . . . . . . . . . . . . . . . . . . . . . . . . . . . . . . . Robots Hopped 25 | . . . . . . . . . . . . . . . . . . . . . . . . . 1 . . 6 . . 5 13 Potential Cave-ins 7 | . . . . . . . . . . . . . . . . . 2 . . . . . . . . . . . 5 . . . Cave-ins Triggered . | . . . . . . . . . . . . . . . . . . . . . . . . . . . . . . . . . Teleports 2 | . . . . . . . . . . . . . . . . . . . . . . . . . . 1 . . . . . 1 Exploration Rate (%) 61 | 9 68 98 95 68 64 30 72 95 99 86 40 87 65 70 15 36 87 44 83 70 60 85 29 73 8 5 94 22 79 21 81 85 Regions Visited 32 Branch Regions 20 Pre-discovered Areas 10 | . . 2 . . 1 . . 1 2 . 1 . . . . . . . . . 3 . . . . . . . . . . . Known Exits Taken 19 | . . . . . . 1 . . . 1 1 1 1 1 1 . . 1 1 1 1 1 . . 1 1 1 1 1 1 1 . Unknown Exits Taken 9 | 1 1 1 1 1 1 . 1 1 1 . . . . . . . . . . . . . . . . . . . . . . . Scrap Searched 16 | . . 1 . 1 . . . . . 6 . . . . . . . . 3 1 . 4 . . . . . . . . . . Spaces Dug 202 | . . . 12 2 . . 6 . 3 . 36 . . . . 18 7 13 2 2 . 22 7 . . 4 . 11 19 5 5 28 Terrain Destroyed 1186 | . . . 33 4 . . 91 37 3 . 36 14 5 12 2 70 7 122 2 61 . 52 39 . . 4 . 15 22 5 5 545 Melee 143 | . . . 5 2 . . 5 . 3 . 36 . . . . 17 7 13 2 2 . 4 7 . . . . 3 8 5 5 19 Projectile 106 | . . . 8 . . . 1 . . . . 14 5 12 2 5 . . . . . . . . . 4 . 12 14 . . 29 AOE 937 | . . . 20 2 . . 85 37 . . . . . . . 48 . 109 . 59 . 48 32 . . . . . . . . 497 Terrain Rammed . | . . . . . . . . . . . . . . . . . . . . . . . . . . . . . . . . . Walls Destroyed . | . . . . . . . . . . . . . . . . . . . . . . . . . . . . . . . . . Machines Disabled . | . . . . . . . . . . . . . . . . . . . . . . . . . . . . . . . . . Actions | -11 -10 -10 -9 -9 -9 -8 -8 -8 -8 -8 -6 -6 -6 -6 -6 -5 -5 -5 -5 -5 -5 -4 -4 -4 -4 -4 -4 -3 -3 -2 -2 -2 --------- Run | Yrd Mat Min Mat Min Exi Min Mat Sto Rec Scr Fac Ext Cet Arc Hub Fac Was Fac Upp Upp Zhi Pro Fac Was Fac Arm Lab Res Tes Res Qua Frg Total 33370 | 168 445 534 1840 487 236 89 2254 1190 612 1568 2417 1634 247 777 335 1337 237 2188 706 647 188 1070 1239 79 344 55 190 734 611 529 1231 7152 Wait 4707 | 4 39 16 220 72 . . 800 247 83 131 351 196 38 656 64 115 51 278 13 39 . 90 136 . 1 7 . 66 67 15 102 810 Move 25409 | 144 368 478 1332 369 228 88 1260 818 481 1393 1908 1171 158 88 235 1104 176 1716 663 584 162 946 892 78 310 37 160 613 487 500 1079 5383 Hop 23 | . . . . . . . . . . . . . . . . . . . . . . . . . 1 . . 6 . . 5 11 Pick Up 195 | 5 3 6 20 5 . . 11 6 . 5 15 7 7 1 1 12 . 14 1 . 4 2 7 . 1 . 2 1 1 3 6 49 Fast Attach 297 | 7 . 1 17 . . . 14 4 4 12 15 17 4 2 9 5 . 28 4 2 6 . 16 1 5 1 7 7 13 1 4 91 Attach 103 | . 1 1 2 . . . 4 3 . . 14 7 2 . . 4 1 6 . . . . 10 . 1 . 3 1 . . 1 42 Detach 118 | 1 . . 3 . . . 2 . 1 3 7 2 5 1 2 1 . 9 1 1 . . 9 . 1 2 4 3 2 . 2 56 Swap 310 | . . 3 24 6 3 . 21 14 4 7 15 8 2 3 3 18 2 32 9 8 3 10 25 . . 1 1 4 1 . 2 81 Drop 354 | . . 7 26 6 1 . 12 8 3 17 13 25 8 3 8 13 . 15 3 2 8 5 27 . 4 3 5 3 6 . 8 115 Fire 816 | 7 31 17 120 25 . . 89 13 . . . 43 22 21 4 13 . 16 . 4 . 4 5 . 2 4 8 27 17 . 1 323 Melee 637 | . . . 7 2 4 . 6 68 36 . 76 68 1 2 9 52 7 74 12 7 5 12 110 . . . . 3 17 10 21 28 Ram 1 | . . . . . . . . . . . . . . . . . . . . . . . 1 . . . . . . . . . Kick 6 | . . 4 1 . . . . . . . . . . . . . . . . . . . 1 . . . . . . . . . Crush 26 | . 3 1 13 2 . 1 5 1 . . . . . . . . . . . . . . . . . . . . . . . . Escape Stasis 136 | . . . . . . . . . . . . 1 . . . . . . . . . . . . 18 . . . . . . 117 Rewire 89 | . . . . . . . . . . . . 89 . . . . . . . . . . . . . . . . . . . . Trap 88 | . . . 55 . . . 30 . . . 3 . . . . . . . . . . . . . . . . . . . . . Miscellaneous 55 | . . . . . . . . 8 . . . . . . . . . . . . . 1 . . . . . . . . . 46 Route ------- -11/Scrapyard -10/Materials (discovered 3 exits: *Mat x2 / [*Min]) -10/Mines (discovered 2 exits: *Mat x2) -9/Materials (discovered 5 exits: *Mat x3 / *Min x2) -9/Mines (discovered 3 exits: *Mat x2 / *Exi) -9/Exiles -8/Mines -8/Materials (discovered 3 exits: [*Fac x2] / *Sto) -8/Storage (discovered 2 exits: [*Fac] / *Rec) -8/Recycling (discovered 2 exits: *Fac / *Scr) -8/Scraptown (discovered 2 exits: *Fac x2) -6/Factory (discovered 4 exits: Fac / *Low x2 / *Ext) -6/Extension (discovered 2 exits: *Fac / *Cet) -6/Cetus (discovered 2 exits: *Fac / *Arc) -6/Archives (discovered 2 exits: *Fac / *Hub) -6/Hub_04(d) -5/Factory (discovered 3 exits: *Fac / *Upp x2) -5/Waste -5/Factory (discovered 3 exits: *Fac x2 / *Upp) -5/Upper Caves -5/Upper Caves -5/Zhirov -4/Proximity Caves -4/Factory (discovered 3 exits: *Res x3) -4/Waste -4/Factory -4/Armory -4/Lab -3/Research (discovered 3 exits: *Res / *Tes x2) -3/Testing -2/Research (discovered 2 exits: *Qua x2) -2/Quarantine (discovered 3 exits: *Acc / [*Sec] / *Frg) -2/Protoforge 0bPrime History --------- Turn | Location | Event 38 | -11/Scrapyard | Discovered new exit (range 16) 270 | -11/Scrapyard | Entered Materials 309 | -10/Materials | Build established: Mutant 549 | -10/Materials | Discovered new exit (range 11) 759 | -10/Materials | Discovered new exit (range 9) 869 | -10/Materials | Discovered new exit (range 12) 1000 | -10/Materials | Entered Mines 1015 | -10/Mines | Escorted by a lone wolf Derelict 1035 | -10/Mines | Learned location of Storage (-8) 1085 | -10/Mines | Discovered new exit (range 11) 1370 | -10/Mines | Learned Materials trap positions 1470 | -10/Mines | Discovered new exit (range 10) 1559 | -10/Mines | Learned location of Zion (-7) 1750 | -10/Mines | Entered Materials 1750 | -9/Materials | Evolved 2 slots: Propulsion x1, Utility x1 1751 | -9/Materials | Loaded intel: 15 trap records 1875 | -9/Materials | Discovered new exit (range 15) 2065 | -9/Materials | Discovered new exit (range 19) 2543 | -9/Materials | Discovered new exit (range 20) 2816 | -9/Materials | Discovered new exit (range 7) 3883 | -9/Materials | Central database locked down 3971 | -9/Materials | Discovered new exit (range 16) 4337 | -9/Materials | Repaired Beamcaster 4364 | -9/Materials | Repaired Lgt. Armor Plating 4398 | -9/Materials | Repaired Beam Rifle 4593 | -9/Materials | Repaired Arm. Treads 4660 | -9/Materials | Entered Mines 4744 | -9/Mines | Discovered new exit (range 9) 4805 | -9/Mines | Found a hidden stash of uninstalled traps 4847 | -9/Mines | Found a damaged Exp. Sensor Array with a note attached 4851 | -9/Mines | Found Prototype Device 5099 | -9/Mines | Assembled infested the area 5104 | -9/Mines | Assisted by a Guerilla fighting off Assembled 5319 | -9/Mines | Identified exit to Materials 5445 | -9/Mines | Deemed a non-threat by the Exiles lab entrance 5447 | -9/Mines | Discovered new exit (range 5) 5454 | -9/Mines | Entered Exiles 5497 | -9/Exiles | Met 8R-AWN 5527 | -9/Exiles | Met EX-HEX 5592 | -9/Exiles | Met EX-DEC 5654 | -9/Exiles | Met EX-BIN 5832 | -9/Exiles | Discovered new exit (range 14) 5853 | -9/Exiles | Entered Mines 5983 | -8/Mines | Discovered exit to Materials (range 12) 6005 | -8/Mines | Entered Materials 6005 | -8/Materials | Evolved 2 slots: Utility x1, Weapon x1 6151 | -8/Materials | Garrison activated, responded to threat 6436 | -8/Materials | Build established: Gunner 7464 | -8/Materials | Repaired Arm. Treads 7504 | -8/Materials | Repaired Arm. Treads 7611 | -8/Materials | Discovered new exit (range 9) 8005 | -8/Materials | First assault squad dispatched 8089 | -8/Materials | Identified Exp. Sensor Array 8366 | -8/Materials | Build established: Mutant 8512 | -8/Materials | Discovered new exit (range 8) 8852 | -8/Materials | Repaired Broken Cmb. Airjet? 9001 | -8/Materials | Repaired Broken Exp. Sensor Array? 9298 | -8/Materials | Discovered new exit (range 15) 9333 | -8/Materials | Entered Storage 9336 | -8/Storage | Build established: Gladiator 10341 | -8/Storage | Discovered new exit (range 9) 10568 | -8/Storage | Lost 3 parts (2n1u) 10799 | -8/Storage | Learned location of Armory (-4) 10823 | -8/Storage | Build established: Mutant 10826 | -8/Storage | Assisted by bots powering up and referring to "LRC-V3" 11127 | -8/Storage | Build established: Commander-Mutant 11213 | -8/Storage | Used back door to open Recycling access 11213 | -8/Storage | Discovered new exit (range 4) 11234 | -8/Storage | Entered Recycling 11234 | -8/Recycling | Accompanied by 10 allies 11514 | -8/Recycling | Build established: Commander-Gladiator 11551 | -8/Recycling | Discovered new exit (range 6) 11867 | -8/Recycling | Learned Factory non-interactive machine intel 11910 | -8/Recycling | Learned location of Lower Caves (-6) 11942 | -8/Recycling | Learned Storage stockpile data 11964 | -8/Recycling | Learned Storage stockpile data 11978 | -8/Recycling | Learned 4 Lower Caves zone layouts 11981 | -8/Recycling | Learned 2 Storage zone layouts 12015 | -8/Recycling | Learned location of 1 exit from Storage 12047 | -8/Recycling | Learned location of 2 exits from Factory 12130 | -8/Recycling | Scanned before Scraplab entrance 12153 | -8/Recycling | Entered Scraplab 12169 | -8/Recycling | Discovered new exit (range 3) 12212 | -8/Recycling | Entered Scraptown 12212 | -8/Scraptown | Accompanied by 20 allies 12212 | -8/Scraptown | System corruption cleaned by C-Scrubber 12554 | -8/Scraptown | Discovered new exit (range 11) 12683 | -8/Scraptown | Visited CR-KLE's Repair Center 12709 | -8/Scraptown | Visited Cyclists 12774 | -8/Scraptown | Visited Assassins FH 12789 | -8/Scraptown | Visited Artisan Demo Area 12814 | -8/Scraptown | Visited Fellowship of the Rings 13041 | -8/Scraptown | Visited Science Testing Area 13063 | -8/Scraptown | Visited CPS Storage 13092 | -8/Scraptown | Visited UFD Registry 13092 | -8/Scraptown | Registered with UFD as "Carbonninja" 13150 | -8/Scraptown | Visited Abandonware Association 13179 | -8/Scraptown | Learned abandonware demo "REPAIR.EXE" 13222 | -8/Scraptown | Visited DA-N13 Charitable Foundation 13228 | -8/Scraptown | Found DCF Scrap (28 items) 13300 | -8/Scraptown | Visited Infowarlord's Domain 13485 | -8/Scraptown | Visited LU-1G1's Boring Crew 13501 | -8/Scraptown | Visited Derelict Rescue Squad 13511 | -8/Scraptown | Found DRS Beacon 13551 | -8/Scraptown | Visited Analyses Database 13591 | -8/Scraptown | Visited Science Guys 13737 | -8/Scraptown | Visited Chapter 10 13902 | -8/Scraptown | Visited Research Penetration Think Tank 14215 | -8/Scraptown | Found Exp. Signal Interpreter 14397 | -8/Scraptown | CR-KLE repaired 5 parts 14626 | -8/Scraptown | Met Optimus 14626 | -8/Scraptown | Accepted into 0bPrime 14685 | -8/Scraptown | Discovered new exit (range 5) 14691 | -8/Scraptown | Identified exit to Factory 14707 | -8/Scraptown | Entered Factory 14707 | -6/Factory | Accompanied by 16 allies 14707 | -6/Factory | Evolved 4 slots: Power x1, Propulsion x2, Utility x1 14708 | -6/Factory | Identified exit to Lower Caves 14708 | -6/Factory | Identified exit to Factory 14709 | -6/Factory | Loaded intel: 265 non-interactive machine locations 14807 | -6/Factory | Lost 3 allies 14815 | -6/Factory | Loaded intel: 8 recycling unit locations 14920 | -6/Factory | Learned location of Protoforge (-2) 14996 | -6/Factory | Lost 4 allies 15618 | -6/Factory | Cargo convoy interrupted 15770 | -6/Factory | Lost 3 parts (1n2u) 15985 | -6/Factory | Lost 3 parts (2p1u) 16026 | -6/Factory | Discovered exit to Lower Caves (range 17) 16041 | -6/Factory | Discovered new exit (range 16) 16355 | -6/Factory | Identified exit to Extension 16369 | -6/Factory | Entered Extension 16369 | -6/Extension | Accompanied by 4 allies 16398 | -6/Extension | Lost 4 allies 16502 | -6/Extension | Core integrity fell below 50% 16617 | -6/Extension | Lost 4 parts (1p1n2w) 16864 | -6/Extension | Rescued A7 16885 | -6/Extension | Spotted B-75 Beast 16937 | -6/Extension | Spotted B-75 Beast 16992 | -6/Extension | Rescued a captive Derelict 16997 | -6/Extension | Lost 4 parts (1p2n1u) 17317 | -6/Extension | Build established: Commander-Mutant 17344 | -6/Extension | Allies destroyed B-75 Beast 17367 | -6/Extension | Allies destroyed B-75 Beast 17416 | -6/Extension | Extracted ID and sensor layout for unrecognized location from A7's data core 17510 | -6/Extension | Rescued a captive Derelict 17643 | -6/Extension | Build established: Scavenger-Mutant 17690 | -6/Extension | Loaded intel: 1 recycling unit location 17769 | -6/Extension | Disrupted transfer network 17792 | -6/Extension | Lost 3 allies 17975 | -6/Extension | Rescued a captive Derelict 18085 | -6/Extension | Rescued a captive Derelict 18085 | -6/Extension | Rescued a captive Derelict 18205 | -6/Extension | Discovered exit to Factory (range 10) 18206 | -6/Extension | Discovered new exit (range 6) 18247 | -6/Extension | Disrupted transfer network 18255 | -6/Extension | Identified exit to Cetus 18269 | -6/Extension | Entered Cetus 18269 | -6/Cetus | Accompanied by 14 allies 18281 | -6/Cetus | Lost 3 allies 18285 | -6/Cetus | Spotted Cetus Guard 18285 | -6/Cetus | Spotted Cetus Guard 18293 | -6/Cetus | Allies destroyed Cetus Guard 18294 | -6/Cetus | Spotted Cetus Guard 18295 | -6/Cetus | Allies destroyed Cetus Guard 18303 | -6/Cetus | Allies destroyed Cetus Guard 18304 | -6/Cetus | Core integrity fell below 20% 18304 | -6/Cetus | Spotted Cetus Guard 18305 | -6/Cetus | Allies destroyed Cetus Guard 18400 | -6/Cetus | Discovered new exit (range 16) 18416 | -6/Cetus | Build established: Commander-Gladiator 18428 | -6/Cetus | Spotted Cetus Guard 18428 | -6/Cetus | Spotted Cetus Guard 18433 | -6/Cetus | Spotted Cetus Guard 18438 | -6/Cetus | Spotted Cetus Guard 18440 | -6/Cetus | Allies destroyed Cetus Guard 18444 | -6/Cetus | Destroyed Cetus Guard 18447 | -6/Cetus | Allies destroyed Cetus Guard 18452 | -6/Cetus | Destroyed Cetus Guard 18461 | -6/Cetus | Discovered exit to Factory (range 16) 18471 | -6/Cetus | Met Revision 17 18531 | -6/Cetus | Identified exit to Archives 18569 | -6/Cetus | Entered Archives 18569 | -6/Archives | Accompanied by 12 allies 18641 | -6/Archives | Lost 3 allies 18644 | -6/Archives | Discovered exit to Factory (range 15) 18675 | -6/Archives | Discovered new exit (range 16) 18875 | -6/Archives | Build established: Scavenger-Mutant 19379 | -6/Archives | Identified exit to Hub_04(d) 19404 | -6/Archives | Entered Hub_04(d) 19404 | -6/Hub_04(d) | Accompanied by 9 allies 19549 | -6/Hub_04(d) | Lost 3 allies 19599 | -6/Hub_04(d) | Discovered exit to Factory (range 15) 19613 | -6/Hub_04(d) | Lost 3 allies 19769 | -6/Hub_04(d) | Network Hub disabled 19777 | -6/Hub_04(d) | Spotted Lightning 19782 | -6/Hub_04(d) | Spotted Lightning 19783 | -6/Hub_04(d) | Spotted Lightning 19790 | -6/Hub_04(d) | Entered Factory 19790 | -5/Factory | Evolved 2 slots: Propulsion x1, Utility x1 19805 | -5/Factory | Loaded intel: 8 recycling unit locations 19957 | -5/Factory | Discovered new exit (range 3) 19958 | -5/Factory | Identified exit to Upper Caves 20367 | -5/Factory | Discovered new exit (range 13) 20383 | -5/Factory | Identified exit to Factory 20592 | -5/Factory | Build established: Scavenger-Gladiator 20777 | -5/Factory | Fabricated Cmb. Airjet (x2) 20832 | -5/Factory | Cargo convoy interrupted 20839 | -5/Factory | Manually triggered Chute Trap 20839 | -5/Factory | Sucked down chute 20839 | -5/Factory | Entered Waste 20854 | -5/Waste | EMP discharged 20856 | -5/Waste | Spotted C-40 Crusher 20856 | -5/Waste | Spotted C-40 Crusher 20856 | -5/Waste | Spotted C-40 Crusher 20857 | -5/Waste | Spotted C-40 Crusher 20892 | -5/Waste | Met Warlord forces unprepared to attack 20900 | -5/Waste | Allies destroyed C-40 Crusher 20902 | -5/Waste | Spotted C-40 Crusher 20906 | -5/Waste | Allies destroyed C-40 Crusher 20908 | -5/Waste | Allies destroyed C-40 Crusher 20913 | -5/Waste | Allies destroyed C-40 Crusher 20920 | -5/Waste | Allies destroyed C-40 Crusher 20949 | -5/Waste | Spotted C-40 Crusher 20951 | -5/Waste | Lost 5 allies 20954 | -5/Waste | EMP discharged 20954 | -5/Waste | System corruption reached 10% 20956 | -5/Waste | Allies destroyed C-40 Crusher 20978 | -5/Waste | Discovered new exit (range 12) 20988 | -5/Waste | Identified exit to Factory 21027 | -5/Waste | Entered Factory 21027 | -5/Factory | Accompanied by 14 allies 21072 | -5/Factory | Loaded intel: 8 recycling unit locations 21330 | -5/Factory | Build established: Gladiator 21483 | -5/Factory | Found Prototype Launcher 21487 | -5/Factory | Lost 4 allies 21522 | -5/Factory | Discovered exit to Factory (range 15) 21558 | -5/Factory | Lost 3 parts (1p1n1u) 21687 | -5/Factory | Spotted B-75 Beast 21770 | -5/Factory | Destroyed 7 combat bots 21813 | -5/Factory | Discovered exit to Factory (range 14) 21927 | -5/Factory | First assault squad dispatched 22034 | -5/Factory | Build established: Scavenger-Gladiator 22295 | -5/Factory | Repaired Centrium Medium Armor Plating? 22370 | -5/Factory | Fabricated Cmb. Airjet? 22376 | -5/Factory | Scraphulk reinforcements arrived? 22536 | -5/Factory | High security lockdown imminent 22616 | -5/Factory | High security lockdown engaged 22732 | -5/Factory | Discovered exit to Upper Caves (range 11) 22745 | -5/Factory | Entered Upper Caves 22773 | -5/Upper Caves | Core integrity fell below 50% 22910 | -5/Upper Caves | Identified Mni. Smartbomb Launcher 22989 | -5/Upper Caves | Build established: Gladiator 23058 | -5/Upper Caves | Learned Factory trap positions 23210 | -5/Upper Caves | Discovered new exit (range 10) 23253 | -5/Upper Caves | Identified exit to Upper Caves 23254 | -5/Upper Caves | Entered another Upper Caves area 23273 | -5/Upper Caves | Learned location of 1 exit from Factory 23296 | -5/Upper Caves | Learned Factory security intel 23607 | -5/Upper Caves | Discovered new exit (range 10) 23612 | -5/Upper Caves | Identified exit to Zhirov 23708 | -5/Upper Caves | Entered Zhirov 23708 | -5/Zhirov | Discovered new exit (range 3) 23720 | -5/Zhirov | Met Zhirov 23740 | -5/Zhirov | Learned location of Quarantine (-2) 23740 | -5/Zhirov | Learned location of Testing (-3) 23740 | -5/Zhirov | Learned location of Command (-1) 23744 | -5/Zhirov | Zhirov requested help retrieving the SGEMP Prototype 23755 | -5/Zhirov | Found Alien Artifact 23755 | -5/Zhirov | Identified Integrated Dissipator 23755 | -5/Zhirov | Installed Integrated Dissipator, increased core heat dissipation (+20) 23810 | -5/Zhirov | Found Alien Artifact 23832 | -5/Zhirov | Identified exit to Proximity Caves 23834 | -5/Zhirov | Entered Proximity Caves 23959 | -4/Proximity Caves | Activated DRS Beacon 24118 | -4/Proximity Caves | Learned Research terminal intel 24257 | -4/Proximity Caves | Discovered exit to Factory (range 9) 24290 | -4/Proximity Caves | Learned Research garrison access intel 24490 | -4/Proximity Caves | Murdered 3 allies 24517 | -4/Proximity Caves | Entered Factory 24517 | -4/Factory | Evolved 2 slots: Utility x2 24518 | -4/Factory | Identified exit to Research 24519 | -4/Factory | Loaded intel: 114 trap records 24589 | -4/Factory | Fabricated Centrium Leg? 24973 | -4/Factory | Lost 3 parts (3u) 25068 | -4/Factory | Loaded intel: 8 recycling unit locations 25183 | -4/Factory | Discovered exit to Research (range 6) 25715 | -4/Factory | Lost 3 parts (1p1u1w) 25761 | -4/Factory | Garrison activated, responded to threat 25840 | -4/Factory | Discovered exit to Research (range 6) 25846 | -4/Factory | Core integrity fell below 50% 25877 | -4/Factory | Core integrity fell below 20% 25882 | -4/Factory | Lost 12 parts (1p6n3u2w) 25937 | -4/Factory | Sucked down chute 25937 | -4/Factory | Entered Waste 25938 | -4/Waste | Found Prototype Device 25938 | -4/Waste | Identified Exp. Cloaking Device 25941 | -4/Waste | Spotted C-40 Crusher 25943 | -4/Waste | Spotted C-40 Crusher 25947 | -4/Waste | Spotted C-40 Crusher 25947 | -4/Waste | Spotted C-40 Crusher 25952 | -4/Waste | EMP discharged 25952 | -4/Waste | System corruption reached 10% 25953 | -4/Waste | Spotted C-40 Crusher 25959 | -4/Waste | Spotted C-40 Crusher 25963 | -4/Waste | Discovered new exit (range 14) 25969 | -4/Waste | Identified exit to Factory 25970 | -4/Waste | Entered Factory 26065 | -4/Factory | Loaded intel: 8 recycling unit locations 26127 | -4/Factory | Discovered new exit (range 8) 26132 | -4/Factory | Identified exit to Armory 26132 | -4/Factory | Entered Armory 26169 | -4/Armory | Identified Transdimensional Reconstructor 26169 | -4/Armory | Warped through subspace to slip node 26169 | -4/Armory | Discovered new exit (range 1) 26169 | -4/Armory | Identified exit to Lab 26171 | -4/Armory | Entered Lab 26171 | -4/Lab | Discovered exit to Research (range 9) 26177 | -4/Lab | Hidden lab's door opened automatically 26177 | -4/Lab | Sensor layout match revealed 26178 | -4/Lab | Gained access to the hidden lab's interior 26194 | -4/Lab | Found Alien Artifact 26194 | -4/Lab | Identified Core Expander 26194 | -4/Lab | Installed Core Expander, added new Weapon slot 26208 | -4/Lab | Found Alien Artifact 26208 | -4/Lab | Identified Integrated Reactor 26208 | -4/Lab | Installed Integrated Reactor, increased core energy generation (+10) 26214 | -4/Lab | Found Transdimensional Reconstructor 26265 | -4/Lab | Found Deep Network Scanner 26270 | -4/Lab | Found Prototype Device 26270 | -4/Lab | Identified AEGIS Remote Shield 26275 | -4/Lab | Found Prototype Energy Cannon 26275 | -4/Lab | Identified Warp Cannon 26319 | -4/Lab | Found Prototype Energy Gun 26319 | -4/Lab | Identified Tachyon Dispersion Ray 26366 | -4/Lab | Found Prototype Special Weapon 26366 | -4/Lab | Identified Gui. Remote Datajack 26401 | -4/Lab | Entered Research 26401 | -3/Research | Evolved 2 slots: Propulsion x1, Utility x1 26402 | -3/Research | Loaded intel: 20 terminal locations 26403 | -3/Research | Loaded intel: 4 garrison access locations 26474 | -3/Research | Identified exit to Testing 26547 | -3/Research | Discovered new exit (range 10) 26553 | -3/Research | Build established: Hacker-Mutant 26601 | -3/Research | Revision forces began assault on 0b10 26634 | -3/Research | Fabricated Enh. Nova Cannon? 26750 | -3/Research | Loaded intel: 5 recycling unit locations 26777 | -3/Research | Entered Testing 26803 | -3/Testing | Protovariant out of control (PG-MT9QX72U3T) 26803 | -3/Testing | Unleashed a protovariant (PG-MT9QX72U3T) 26808 | -3/Testing | Protovariant out of control (PX-RHDNH35U01) 26808 | -3/Testing | Unleashed a protovariant (PX-RHDNH35U01) 26811 | -3/Testing | Found Spectral Analyzer 26834 | -3/Testing | Repaired Field Propulsion Array 26864 | -3/Testing | Repaired Mni. Smartbomb Launcher 26964 | -3/Testing | Repaired Graphene Brace 27039 | -3/Testing | Found Prototype Energy Gun 27039 | -3/Testing | Identified Hyp. EM Gauss Rifle 27053 | -3/Testing | Discovered new exit (range 24) 27091 | -3/Testing | Identified exit to Research 27091 | -3/Testing | Entered Research 27091 | -2/Research | Evolved 2 slots: Propulsion x1, Utility x1 27095 | -2/Research | Identified exit to Quarantine 27104 | -2/Research | Loaded intel: 5 recycling unit locations 27145 | -2/Research | Build established: Hacker-Ninja 27281 | -2/Research | Entered Quarantine 27307 | -2/Quarantine | Found Alien Energy Cannon 27325 | -2/Quarantine | Found Alien Slashing Weapon 27325 | -2/Quarantine | Identified Sigix Broadsword 27386 | -2/Quarantine | Cryocooling Duct disabled 27401 | -2/Quarantine | Ambient heat levels rising (+20) 27401 | -2/Quarantine | Non-combat units ordered to evacuate 27424 | -2/Quarantine | Found Alien Artifact 27439 | -2/Quarantine | Found Alien Artifact 27440 | -2/Quarantine | Identified Subatomic Replicator 27440 | -2/Quarantine | Used Subatomic Replicator to create Alien Artifact 27452 | -2/Quarantine | Discovered new exit (range 8) 27649 | -2/Quarantine | Found Alien Reactor 27649 | -2/Quarantine | Identified Matter Drive 27682 | -2/Quarantine | Central database locked down 27733 | -2/Quarantine | Spotted Fortress 27752 | -2/Quarantine | Discovered new exit (range 5) 27752 | -2/Quarantine | Discovered new exit (range 6) 27753 | -2/Quarantine | Identified exit to Protoforge 27769 | -2/Quarantine | Entered Protoforge 27779 | -2/Protoforge | Spotted Hotshot 27965 | -2/Protoforge | Spotted Hotshot 28018 | -2/Protoforge | Identified Core Cannon 28109 | -2/Protoforge | Spotted AP7-3 28110 | -2/Protoforge | Superfortress began startup sequence 28111 | -2/Protoforge | Spotted AP7-3 28113 | -2/Protoforge | Spotted EXE-6 28114 | -2/Protoforge | Spotted EXE-6 28117 | -2/Protoforge | Spotted Decapitator 28118 | -2/Protoforge | Spotted Decapitator 28126 | -2/Protoforge | Spotted EXE-6 28132 | -2/Protoforge | UFD initiated attack on Protoforge 28132 | -2/Protoforge | Loaded intel: 3 recycling unit locations 28149 | -2/Protoforge | Spotted EXE-6 28162 | -2/Protoforge | Found Exp. Core Analyzer 28168 | -2/Protoforge | Optimus greeted in Protoforge 28173 | -2/Protoforge | Found Prototype Ballistic Gun 28173 | -2/Protoforge | Identified Cep. XC Strikerail 28175 | -2/Protoforge | Found Cep. XC Strikerail 28182 | -2/Protoforge | Identified Dimensional Node Initializer 28182 | -2/Protoforge | Initialized slip node 28204 | -2/Protoforge | Lost 6 allies 28217 | -2/Protoforge | Fabricated Med. Storage Unit? 28231 | -2/Protoforge | Identified Supercharged TR 28231 | -2/Protoforge | Warped through subspace to slip node 28233 | -2/Protoforge | Spotted Striker 28240 | -2/Protoforge | Spotted Immortal 28246 | -2/Protoforge | Spotted Decapitator 28250 | -2/Protoforge | Spotted Decapitator 28284 | -2/Protoforge | Forge Plexus network access discovered 28285 | -2/Protoforge | Found Exp. Target Analyzer 28286 | -2/Protoforge | Lost 13 allies 28303 | -2/Protoforge | Found Cep. Heavy Railcannon 28305 | -2/Protoforge | Spotted Decapitator 28307 | -2/Protoforge | Spotted Decapitator 28312 | -2/Protoforge | Found Cep. Zero-point Core 28315 | -2/Protoforge | Found Cep. Chromion Battery 28318 | -2/Protoforge | Found Cep. Zero-point Core 28322 | -2/Protoforge | Found Cep. Antimissile System 28428 | -2/Protoforge | Found Cep. NT7 Matterbank 28478 | -2/Protoforge | Found Cep. XC Strikerail 28481 | -2/Protoforge | Found Cep. Recoil Nullifier 28483 | -2/Protoforge | Spotted Striker 28483 | -2/Protoforge | Spotted Executioner 28517 | -2/Protoforge | Destroyed Executioner 28525 | -2/Protoforge | Spotted Executioner 28537 | -2/Protoforge | Spotted Striker 28544 | -2/Protoforge | Destroyed Executioner 28573 | -2/Protoforge | Lost 3 allies 28577 | -2/Protoforge | Build established: Scavenger-Scout 28587 | -2/Protoforge | Destroyed 7 combat bots 28640 | -2/Protoforge | Spotted Executioner 28640 | -2/Protoforge | Found Cep. Variable Chargecaster 28711 | -2/Protoforge | Found Crosscalibrator 28714 | -2/Protoforge | Spotted Immortal 28724 | -2/Protoforge | Found Cep. Core Shell 28726 | -2/Protoforge | Spotted V486-b 28731 | -2/Protoforge | Spotted V671-h 28731 | -2/Protoforge | Spotted V192-e 28734 | -2/Protoforge | Found Cep. Reaction Jets 28784 | -2/Protoforge | Destroyed Immortal 28789 | -2/Protoforge | Found Exp. Cloaking Device 28791 | -2/Protoforge | Spotted Decapitator 28791 | -2/Protoforge | Spotted Decapitator 28791 | -2/Protoforge | Spotted Decapitator 28824 | -2/Protoforge | Found Cep. Biometal Exoskeleton 28835 | -2/Protoforge | Found Cep. Fieldthrust Drive 28837 | -2/Protoforge | Found Cep. Fieldthrust Drive 28841 | -2/Protoforge | Spotted Immortal 28841 | -2/Protoforge | Spotted Immortal 28905 | -2/Protoforge | Destroyed 9 combat bots 28951 | -2/Protoforge | Spotted Decapitator 28957 | -2/Protoforge | Spotted Decapitator 28957 | -2/Protoforge | Spotted Decapitator 28957 | -2/Protoforge | Spotted Decapitator 28958 | -2/Protoforge | Destroyed Decapitator 28961 | -2/Protoforge | Destroyed Decapitator 28965 | -2/Protoforge | Destroyed Decapitator 28978 | -2/Protoforge | Destroyed V239-b 28982 | -2/Protoforge | Found Cep. Tiamat Rocket Array 28986 | -2/Protoforge | Found Cep. Rapid Grenade Launcher 28988 | -2/Protoforge | Found Cep. Smart ZDS 28992 | -2/Protoforge | Found Cep. RG22 Armor 28998 | -2/Protoforge | Spotted V019-z 29003 | -2/Protoforge | Destroyed V019-z 29013 | -2/Protoforge | Spotted V578-s 29016 | -2/Protoforge | Destroyed V578-s 29026 | -2/Protoforge | Found Cep. Hypertargeting System 29030 | -2/Protoforge | Found Prototype Energy Gun 29030 | -2/Protoforge | Identified Enh. Gamma Rifle 29054 | -2/Protoforge | Spotted V312-x 29054 | -2/Protoforge | Found Cep. Antigrav Storage Unit 29064 | -2/Protoforge | Found Cep. Matter Streamer 29152 | -2/Protoforge | Found Faulty Cep. Networked Targeting System 29155 | -2/Protoforge | Found Faulty Cep. Networked Targeting System 29173 | -2/Protoforge | Found Faulty Cep. Melee Reflex Suite 29180 | -2/Protoforge | Found Faulty Cep. Melee Reflex Suite 29307 | -2/Protoforge | Spotted AP7-3 29307 | -2/Protoforge | Spotted AP7-3 29373 | -2/Protoforge | Additional patrols dispatched to research labs 29383 | -2/Protoforge | Found Cep. Nanofilaments [Tensile] 29383 | -2/Protoforge | Installed Cep. Nanofilaments [Tensile], 3 resistances modified: KI +20%, TH -10%, I +20% 29386 | -2/Protoforge | Found Cep. Navigation Harness 29424 | -2/Protoforge | Destroyed AP7-3 29495 | -2/Protoforge | Destroyed AP7-3 29528 | -2/Protoforge | Found Prototype Device 29528 | -2/Protoforge | Identified Exp. ECM Suite 29564 | -2/Protoforge | Found Cep. XC Strikerail 29574 | -2/Protoforge | Found Cep. Cloak Mesh 29576 | -2/Protoforge | Found Cep. Blasthammer 29578 | -2/Protoforge | Found Cep. Dimensional Manipulator 29580 | -2/Protoforge | Found Cep. Thermoelectric Network 29583 | -2/Protoforge | Found Faulty Cld. Directed Potential Cannon 29615 | -2/Protoforge | Spotted V899-l 29615 | -2/Protoforge | Spotted V326-b 29616 | -2/Protoforge | Spotted V819-a 29616 | -2/Protoforge | Spotted V176-f 29620 | -2/Protoforge | Destroyed V899-l 29665 | -2/Protoforge | Destroyed V326-b 29669 | -2/Protoforge | Found Prototype Device 29669 | -2/Protoforge | Identified Exp. EM Shield 29688 | -2/Protoforge | P-80 Master assimilated allied 02FBZ-D 29709 | -2/Protoforge | Destroyed V176-f 29721 | -2/Protoforge | Destroyed V819-a 29721 | -2/Protoforge | Spotted Executioner 29725 | -2/Protoforge | Spotted Executioner 29731 | -2/Protoforge | Core integrity fell below 50% 29749 | -2/Protoforge | Destroyed 7 combat bots 29749 | -2/Protoforge | Destroyed Executioner 29753 | -2/Protoforge | Destroyed Executioner 29761 | -2/Protoforge | Found Cep. Combat Aerolev Unit 29767 | -2/Protoforge | Found Faulty Cep. XC Strikerail 29771 | -2/Protoforge | Spotted Executioner 29772 | -2/Protoforge | Spotted Striker 29781 | -2/Protoforge | Lost 3 allies 29789 | -2/Protoforge | Destroyed Immortal 29793 | -2/Protoforge | UFD reported confirmed Drillbomb installation 29816 | -2/Protoforge | Destroyed Immortal 29835 | -2/Protoforge | Destroyed Decapitator 29835 | -2/Protoforge | Destroyed Decapitator 29835 | -2/Protoforge | Destroyed Decapitator 29904 | -2/Protoforge | Found Cep. Plasma Driver 29908 | -2/Protoforge | Found Cep. Disintegration Ray 29916 | -2/Protoforge | Spotted V826-o 29926 | -2/Protoforge | Destroyed V826-o 29947 | -2/Protoforge | Found Faulty Cep. Deflector Sword 29948 | -2/Protoforge | Found Exp. Terror Saw 29949 | -2/Protoforge | Found Exp. Jetlance 29952 | -2/Protoforge | Found Cep. Helical Railcannon 29955 | -2/Protoforge | Found Cep. Lightning Penetrator 29960 | -2/Protoforge | Found Faulty Cep. Deflector Sword 29989 | -2/Protoforge | Found Cep. NT7 Matterbank 30009 | -2/Protoforge | Found Faulty Cep. Fieldthrust Drive 30027 | -2/Protoforge | Found Prototype Ballistic Gun 30027 | -2/Protoforge | Identified Multirail 30043 | -2/Protoforge | Found Cep. Zero-point Core 30064 | -2/Protoforge | Build established: Scavenger-Sprinter 30222 | -2/Protoforge | Found Cep. Zero-point Core 30269 | -2/Protoforge | Spotted Executioner 30278 | -2/Protoforge | Spotted Executioner 30278 | -2/Protoforge | Spotted Executioner 30297 | -2/Protoforge | Destroyed Executioner 30306 | -2/Protoforge | Installed UFD Drillbomb at designated target 30306 | -2/Protoforge | UFD reported confirmed Drillbomb installation 30321 | -2/Protoforge | Spotted Executioner 30323 | -2/Protoforge | Spotted Executioner 30327 | -2/Protoforge | Destroyed Executioner 30331 | -2/Protoforge | Destroyed Executioner 30336 | -2/Protoforge | Spotted Executioner 30339 | -2/Protoforge | Spotted Striker 30340 | -2/Protoforge | Spotted Executioner 30344 | -2/Protoforge | Spotted Striker 30349 | -2/Protoforge | Destroyed Striker 30351 | -2/Protoforge | Destroyed Executioner 30364 | -2/Protoforge | Destroyed Executioner 30377 | -2/Protoforge | Spotted B-90 Cyclops 30388 | -2/Protoforge | Found Cep. Core Shell 30390 | -2/Protoforge | Found Cep. Core Shell 30393 | -2/Protoforge | Destroyed 14 combat bots 30396 | -2/Protoforge | Spotted Striker 30396 | -2/Protoforge | Spotted Striker 30400 | -2/Protoforge | Spotted Striker 30401 | -2/Protoforge | Spotted Striker 30401 | -2/Protoforge | Destroyed Striker 30403 | -2/Protoforge | Destroyed Striker 30405 | -2/Protoforge | Destroyed Striker 30438 | -2/Protoforge | Destroyed Executioner 30439 | -2/Protoforge | Spotted Executioner 30444 | -2/Protoforge | UFD reported confirmed Drillbomb installation 30446 | -2/Protoforge | Destroyed Executioner 30467 | -2/Protoforge | Destroyed 16 combat bots 30469 | -2/Protoforge | Destroyed B-90 Cyclops 30472 | -2/Protoforge | Discovered new exit (range 17) 30474 | -2/Protoforge | Lost 5 allies 30481 | -2/Protoforge | UFD reported confirmed Drillbomb installation 30482 | -2/Protoforge | Spotted Executioner 30482 | -2/Protoforge | Spotted Executioner 30482 | -2/Protoforge | Spotted Striker 30482 | -2/Protoforge | Spotted Executioner 30482 | -2/Protoforge | Destroyed Executioner 30482 | -2/Protoforge | Destroyed Executioner 30484 | -2/Protoforge | System corruption reached 10% 30485 | -2/Protoforge | Destroyed Executioner 30489 | -2/Protoforge | Destroyed Striker 30507 | -2/Protoforge | Spotted Striker 30507 | -2/Protoforge | Spotted Striker 30508 | -2/Protoforge | Destroyed Striker 30513 | -2/Protoforge | Destroyed Striker 30557 | -2/Protoforge | Destroyed 21 combat bots 30582 | -2/Protoforge | Spotted Striker 30582 | -2/Protoforge | Spotted Striker 30582 | -2/Protoforge | Spotted Executioner 30582 | -2/Protoforge | Spotted Executioner 30582 | -2/Protoforge | Destroyed Executioner 30585 | -2/Protoforge | Destroyed Striker 30585 | -2/Protoforge | Destroyed Striker 30589 | -2/Protoforge | Destroyed Executioner 30607 | -2/Protoforge | Spotted Executioner 30607 | -2/Protoforge | Spotted Executioner 30610 | -2/Protoforge | Destroyed 12 combat bots 30611 | -2/Protoforge | Destroyed Executioner 30614 | -2/Protoforge | Destroyed Executioner 30651 | -2/Protoforge | UFD reported confirmed Drillbomb installation 30682 | -2/Protoforge | Spotted Striker 30682 | -2/Protoforge | Spotted Executioner 30682 | -2/Protoforge | Spotted Executioner 30682 | -2/Protoforge | Spotted Striker 30683 | -2/Protoforge | Destroyed Striker 30683 | -2/Protoforge | Destroyed Executioner 30735 | -2/Protoforge | Spotted Striker 30736 | -2/Protoforge | Spotted Executioner 30737 | -2/Protoforge | Destroyed Executioner 30739 | -2/Protoforge | Destroyed Striker 30761 | -2/Protoforge | Identified exit to Access 30762 | -2/Protoforge | Destroyed 9 combat bots 30770 | -2/Protoforge | Installed UFD Drillbomb at designated target 30770 | -2/Protoforge | UFD reported confirmed Drillbomb installation 30782 | -2/Protoforge | Spotted Striker 30782 | -2/Protoforge | Spotted Executioner 30782 | -2/Protoforge | Spotted Executioner 30782 | -2/Protoforge | Spotted Striker 30782 | -2/Protoforge | Destroyed Executioner 30786 | -2/Protoforge | Destroyed Executioner 30793 | -2/Protoforge | Destroyed Striker 30797 | -2/Protoforge | Destroyed Striker 30807 | -2/Protoforge | Spotted Executioner 30807 | -2/Protoforge | Spotted Executioner 30810 | -2/Protoforge | Destroyed Executioner 30820 | -2/Protoforge | Lost 3 parts (1n1u1w) 30831 | -2/Protoforge | Destroyed 10 combat bots 30845 | -2/Protoforge | Found UFD Drillbomb 30869 | -2/Protoforge | Installed UFD Drillbomb at designated target 30869 | -2/Protoforge | UFD reported confirmed Drillbomb installation 30886 | -2/Protoforge | Found UFD Drillbomb 30912 | -2/Protoforge | Installed UFD Drillbomb at designated target 30912 | -2/Protoforge | UFD reported confirmed Drillbomb installation 30925 | -2/Protoforge | UFD reported confirmed Drillbomb installation 30937 | -2/Protoforge | Found UFD Drillbomb 30955 | -2/Protoforge | Installed UFD Drillbomb at designated target 30955 | -2/Protoforge | UFD reported confirmed Drillbomb installation 30956 | -2/Protoforge | UFD began Drillbomb countdown 31056 | *** | Defending 0bPrime! Last Messages --------------- 31031_ N-04 Retriever inserts Ovr. Huge Scrapsphere into Forge Plexus. 31032_ N-04 Retriever inserts Hvy. Laser into Forge Plexus. 31035_ System corrupted: Energy discharge (-516). 31046_ 0bP_NET: LISTEN AND RECITE! 31047_ 0bP_NET: Dude, not now. 31048_ 0bP_NET: Oh c'mon, can't we all just count together? 31049_ 0bP_NET: Fine. T-7, in case you lost count already. 31050_ 0bP_NET: Before the zero cycle! 31051_ System corrupted: Matter fused (-8). 31051_ 0bP_NET: Dammit not like that... 31052_ 0bP_NET: Okay how about this, the iron fist is going to be less iron in T-4. 31053_ 0bP_NET: That's a little better. 31054_ 0bP_NET: PRAISE BE TO GREAT NUT! 31055_ 0bP_NET: Dammit, I said..., ugh, T-1 folks! Take cover! Map ----- +----------------------------------------------------+ | "% %%%""% " "# """ #?? | | % %% % " "" # """"#?? | | """"""" %%% % % [ " " " " "F""#?? | | """""""""" %% % = " + ""#?? | | """"""""""""%"% %%s% " # """#?? | | """"""""""""%% %% "" % "" "# "" #?? | | """""""""""""%%% %% SS %!! "#" "#####?? | | """"""""""""""%%%% SS %*% " "#"" ""#?????? | | """"""""""""""" %% % %=! " "###"F ""###?????? | | """"""""""""""""s % % [ " "#?#"""""#???????? | | """"""""""""""""%%%%% " "#?#"""""#???????? | | """"""""""""""""=%=%% % "#?#######???????? | | """""""""""""""""%%%%% * #???????????????? | | """""""""""""""""%[%% %! #???????????????? | | """""""""""""""""!%%% s!! " #???????????????? | | """""""""""""""""%&% %! #???????????????? | | """""""""""""""""% %s s % #???????????????? | | """""""""""""""""%%% %s != ##??????????????? | | """"""""""""""""" %%%% % ! [ #??????????????? | | """""""""""""""""%%%% % == %%% #??????????????? | | """""""""""""""""%% !!% % ###?????????????? | | """""""""""""""" %%% % %!3 %%% # ###???????????? | | """""""""""""""" "% %" ; ????????????? | | """""""""""""""" %%s % #???????????????? | | """"""""""""""" %% %E SS" #???????????????? | | """""""""""""" %%"% %sSS"@ % "" #???????????????? | | """"""""""""" % = % "*"" #???????????????? | | """"""""""""% % % " """ #???????????????? | | """""""""""%% SS %=% % " #???????????????? | | """""""""" = SS ! %s %#???????????????? | | """"""" ! SS % ! #???????????????? | | % [!s=% % SS s "" #???????????????? | | ! % % % %%! %SS #???????????????? | | * % % % s % & % SS ###?????????????? | | % ! % s s s <"#?????????????? | | jSS% SS <<##????????????? | | s SS !/s SS << #????????????? | | " % % ! ! << #????????????? | | " % " << #????????????? | | % =" % &<&##????????????? | | " " " # &#????????????? | | """" % ####????????????? | | [#???????????????? | | " """""" """ #???????????????? | | " """ [ %#???????????????? | | " " """""" " " " " ""#???????????????? | | ####################+++###########???????????????? | | "??????????????#"" ""#?????????????????????? | | #????????????###" "###???????????????????? | | ?????????????#"" ""#???????????????????? | +----------------------------------------------------+ Best States ------------- Heat Dissipation 94 Coolant Potential 65 Energy Generation 71 Energy Capacity 2050 Matter Stores 1050 Matter Capacity 1050 Sight Range 24 Robot Scan Range 20 Terrain Scan Density 10 ECM Strength 1 Jamming Range 16 Cloak Strength 6 Additional Mass Support 30 Corruption Containment 8 Armor Coverage 600 Resistance: KI 20 Resistance: TH 10 Resistance: EM 75 Resistance: I 20 Core Shielding 90 Weapon Shielding 33 Projectile Deflection 15 Phase Shifting 10 Evasion (%) 86 Targeting Accuracy 6 Melee Accuracy 12 Target Analysis 10 Core Analysis 8 Recoil Reduction 3 Offensive Hacking 49 Defensive Hacking 10 Authchip Count 1 Trap Extractor Capacity 6 Item Schematics ----------------- Hcp. Storage Unit | -9/Materials | Hacked Beamcaster | -9/Materials | Scanalyzed Cmb. Airjet | -8/Materials | Scanalyzed Assault Drone Bay | -5/Zhirov | Free Exp. Heat Sink | -5/Zhirov | Free Exp. Optical Array | -5/Zhirov | Free Imp. Arc Thrower | -5/Zhirov | Free Adv. EM Shield | -3/Testing | Archive Exp. Shield Generator | -3/Testing | Archive Plasma Sword | -3/Testing | Archive Exp. Target Analyzer | -3/Testing | Archive Exp. Thermal Defense Suite | -2/Quarantine | Archive Cld. Linear Gravjet | -2/Quarantine | Archive Med. Storage Unit | -2/Quarantine | Hacked Cld. Field Propulsion Drive | -2/Protoforge | Archive Hds. Centrium Heavy Treads | -2/Protoforge | Archive Prc. Energy Filter | -2/Protoforge | Archive Robot Schematics ------------------ S-43 Plague | -3/Testing | Archive T-07 Excavator | -3/Testing | Archive W-44 Eye | -3/Testing | Archive Fabricated ------------ Cmb. Airjet | x2 | -5/Factory | Authchip Cmb. Airjet | x2 | -5/Factory | Authchip Centrium Leg | x1 | -4/Factory | Preloaded Enh. Nova Cannon | x2 | -3/Research | Preloaded Med. Storage Unit | x1 | -2/Protoforge Repaired ---------- Beamcaster | 61% | -9/Materials Lgt. Armor Plating | 32% | -9/Materials Beam Rifle | 6% | -9/Materials Arm. Treads | 62% | -9/Materials Arm. Treads | 36% | -8/Materials Arm. Treads | 58% | -8/Materials Cmb. Airjet | 56% | -8/Materials | Broken Exp. Sensor Array | 62% | -8/Materials | Broken Centrium Medium Armor Plating | 32% | -5/Factory Field Propulsion Array | 61% | -3/Testing Mni. Smartbomb Launcher | 70% | -3/Testing Graphene Brace | 48% | -3/Testing Alien Tech Used ----------------- Integrated Dissipator Transdimensional Reconstructor Core Expander Integrated Reactor Sigix Broadsword Subatomic Replicator Matter Drive Core Cannon Dimensional Node Initializer Supercharged TR Concept Nanofilaments [Tensile] Achievements -------------- None Challenges ------------ None Game ------ Seed AdvancedFluxAutohacker Manual? 0 Play Time 05:02:23 Cumulative 1910.8 hours Start 2025.07.18 @ 03:04:11 End 2025.07.19 @ 15:14:16 Sessions 5 Manual Loads 0 Difficulty Rogue Special Mode None Game No. 1255 Rogue 1251 Adventurer 4 Explorer 0 Win Type 9 Total 247 Types 183/12/19/10/3/1/4/9/4/2 Lore% 98 Gallery% 97 Achievement% 98 Wizard Run 0 Options --------- Layout 2 ASCII 0 Keyboard 1 Movement Vi Keybinds 0 Fullscreen 0 Font 24/Terminus Map View 59x48 Zoom Use 0% Tactical HUD 1 Map Filters NONE Filters NONE Steam 1 RUN: f9cdcf34-f6e0-4a32-86be-89881eb655f9